Workbook

Sheet 2021 Sugar
J2: Louisiana Sugar Cane Cooperative, Inc.
K4: Location Storage
L5: Monique Fuselier'
B6: Date | C6: Ticket no. | D6: Gross wt | E6: Tare wt | F6: Net wt | G6: SM#1 | H6: SM #2 | I6: Hopper to BB. | J6: #1 & #2 to BB. | K6: CALDWELL | L6: HOLDING
B7: 2021-09-29 | C7: 28966 | D7: 63880 | E7: 26700 | F7: =D7-E7 -> 37180 | G7: =F7 -> 37180
B8: =B7 -> 2021-09-29 | C8: 28967 | D8: 64820 | E8: 26940 | F8: 37880 | G8: 37880
B9: 2021-09-29 | C9: 28968 | D9: 57900 | E9: 26840 | F9: 31060 | G9: 31060
B10: 2021-09-29 | C10: 61476 | D10: 63780 | E10: 27180 | F10: 36600 | G10: 36600
B11: 2021-09-29 | C11: 61477 | D11: 63020 | E11: 27260 | F11: 35760 | G11: 35760
B12: 2021-09-29 | C12: =1+C11 -> 61478 | F12: 0 | G12: 0
B13: 2021-09-29 | C13: =1+C12 -> 61479 | D13: 66840 | E13: 26740 | F13: =D13-E13 -> 40100 | G13: =F13 -> 40100
B14: =B13 -> 2021-09-29 | C14: =1+C13 -> 61480 | D14: 58220 | E14: 26680 | F14: 31540 | G14: 31540
B15: 2021-09-29 | C15: 61481 | F15: 0 | G15: 0
B16: 2021-09-29 | C16: 61482 | D16: 63100 | E16: 26880 | F16: 36220 | G16: 36220
B17: 2021-09-29 | C17: 61483 | D17: 55540 | E17: 26880 | F17: 28660 | G17: 28660
B18: 2021-09-29 | C18: 61484 | D18: 47320 | E18: 26820 | F18: 20500 | G18: 20500
B19: 2021-09-29 | C19: 61485 | D19: 62240 | E19: 26800 | F19: 35440 | G19: 35440
B20: 2021-09-29 | C20: 61486 | D20: 57740 | E20: 26800 | F20: 30940 | G20: 30940
B21: 2021-09-29 | C21: 61487 | D21: 64740 | E21: 26840 | F21: 37900 | G21: 37900
B22: 2021-09-29 | C22: 61488 | D22: 61860 | E22: 26680 | F22: 35180 | G22: 35180
B23: 2021-09-29 | C23: 61489 | D23: 65140 | E23: 26760 | F23: 38380 | G23: 38380
B24: 2021-09-29 | C24: 61490 | D24: 68920 | E24: 26760 | F24: 42160 | G24: 42160
B25: 2021-09-29 | C25: 61491 | D25: 63440 | E25: 26760 | F25: 36680 | G25: 36680
B26: 2021-09-29 | C26: 61492 | D26: 62120 | E26: 26840 | F26: 35280 | G26: 35280
B27: 2021-09-29 | C27: 61493 | D27: 65160 | E27: 27100 | F27: 38060 | G27: 38060
B28: 2021-09-29 | C28: 61494 | D28: 57580 | E28: 26940 | F28: 30640 | G28: 30640
B29: 2021-09-29 | C29: 61495 | D29: 61780 | E29: 26980 | F29: 34800 | G29: 34800
B30: 2021-09-29 | C30: 61496 | D30: 64480 | E30: 26920 | F30: 37560 | G30: =F30 -> 37560 | L30: =F30 -> 37560
B31: 2021-09-30 | C31: 61498 | D31: 37560 | E31: 27440 | F31: 10120 | G31: =F31 -> 10120
B32: =B31 -> 2021-09-30 | C32: =1+C31 -> 61499 | D32: 63040 | E32: 27080 | F32: =D32-E32 -> 35960 | G32: 35960
B33: =B32 -> 2021-09-30 | C33: =1+C32 -> 61500 | D33: 65100 | E33: 27040 | F33: =D33-E33 -> 38060 | G33: =F33 -> 38060
B34: 2021-09-30 | C34: 61501 | D34: 63840 | E34: 27160 | F34: =D34-E34 -> 36680 | G34: 36680
B35: 2021-09-30 | C35: 61502 | D35: 55620 | E35: 27040 | F35: =D35-E35 -> 28580 | G35: 28580
B36: 2021-09-30 | C36: 61503 | D36: 65040 | E36: 27080 | F36: =D36-E36 -> 37960 | G36: 37960
B37: 2021-09-30 | C37: 61504 | D37: 65760 | E37: 33400 | F37: =D37-E37 -> 32360 | G37: 32360
B38: 2021-09-30 | C38: 61505 | D38: 69640 | E38: 31280 | F38: 38360 | G38: 38360
B39: 2021-09-30 | C39: 61506 | D39: 68500 | E39: 26800 | F39: 41700 | G39: 41700
B40: 2021-09-30 | C40: 61507 | D40: 68200 | E40: 26900 | F40: 41300 | G40: 41300
B41: 2021-09-30 | C41: 61508 | D41: 68480 | E41: 26940 | F41: 41540 | G41: 41540
B42: 2021-09-30 | C42: 61509 | D42: 71100 | E42: 26960 | F42: 44140 | G42: 44140
B43: 2021-09-30 | C43: 61510 | F43: 0 | G43: 0
B44: 2021-09-30 | C44: 61511 | D44: 64600 | E44: 26840 | F44: 37760 | G44: 37760
B45: 2021-09-30 | C45: 61512 | D45: 66800 | E45: 26960 | F45: 39840 | G45: 39840
B46: 2021-09-30 | C46: 61513 | D46: 67760 | E46: 26980 | F46: 40780 | G46: 40780
B47: 2021-09-30 | C47: 61514 | D47: 67280 | E47: 26960 | F47: 40320 | G47: 40320
B48: 2021-09-30 | C48: 61515 | D48: 66700 | E48: 26920 | F48: 39780 | G48: 39780
B49: 2021-09-30 | C49: 61516 | D49: 60180 | E49: 26960 | F49: 33220 | G49: 33220
B50: 2021-09-30 | C50: 61517 | D50: 69760 | E50: 26980 | F50: 42780 | G50: 42780
B51: 2021-09-30 | C51: 61518 | D51: 64360 | E51: 26980 | F51: 37380 | G51: 37380
B52: 2021-09-30 | C52: 61519 | D52: 57960 | E52: 27020 | F52: 30940 | G52: 30940
B53: 2021-09-30 | C53: 61520 | D53: 70180 | E53: 27060 | F53: 43120 | G53: 43120
B54: 2021-09-30 | C54: 61521 | D54: 67180 | E54: 26880 | F54: 40300 | G54: 40300
B55: =B54 -> 2021-09-30 | C55: =1+C54 -> 61522 | D55: 56820 | E55: 26840 | F55: 29980 | G55: 29980
B56: 2021-09-30 | C56: 61523 | D56: 63560 | E56: 27000 | F56: 36560 | G56: 36560
B57: 2021-09-30 | C57: 61524 | D57: 64980 | E57: 26920 | F57: 38060 | G57: 38060
B58: 2021-09-30 | C58: 61525 | D58: 62000 | E58: 26880 | F58: 35120 | G58: 35120
B59: 2021-09-30 | C59: 61526 | D59: 61040 | E59: 26900 | F59: 34140 | G59: 34140
B60: 2021-09-30 | C60: 61527 | D60: 63420 | E60: 26900 | F60: 36520 | G60: 36520
B61: 2021-09-30 | C61: 61528 | D61: 66400 | E61: 26940 | F61: 39460 | G61: 39460
B62: 2021-09-30 | C62: 61529 | D62: 68900 | E62: 27000 | F62: 41900 | G62: 41900 | L62: =F62 -> 41900
B63: 2021-09-30 | C63: 61530 | D63: 57300 | E63: 26920 | F63: 30380 | G63: 30380 | L63: =F63 -> 30380
B64: 2021-10-01 | C64: 61531 | D64: 66780 | E64: 26960 | F64: 39820 | G64: 39820
B65: =B64 -> 2021-10-01 | C65: =1+C64 -> 61532 | D65: 66020 | E65: 26980 | F65: 39040 | G65: 39040
B66: =B65 -> 2021-10-01 | C66: =1+C65 -> 61533 | D66: 65240 | E66: 26960 | F66: 38280 | G66: 38280
B67: 2021-10-01 | C67: 61534 | F67: 0 | G67: 0
B68: 2021-10-01 | C68: 61535 | D68: 70880 | E68: 27000 | F68: 43880 | G68: 43880
B69: 2021-10-01 | C69: 61536 | D69: 69980 | E69: 26980 | F69: 43000 | G69: 43000
B70: 2021-10-01 | C70: 61537 | D70: 69900 | E70: 26920 | F70: 42980 | G70: 42980
B71: 2021-10-01 | C71: 61538 | D71: 68980 | E71: 26980 | F71: 42000 | G71: 42000
B72: 2021-10-01 | C72: 61539 | D72: 64820 | E72: 26940 | F72: 37880 | G72: 37880
B73: 2021-10-01 | C73: 61540 | D73: 65300 | E73: 26900 | F73: 38400 | G73: 38400
B74: 2021-10-01 | C74: 61541 | D74: 57600 | E74: 26900 | F74: 30700 | G74: 30700
B75: 2021-10-01 | C75: 61542 | D75: 64960 | E75: 26920 | F75: 38040 | G75: 38040
B76: 2021-10-01 | C76: 61543 | D76: 66360 | E76: 26860 | F76: 39500 | G76: 39500
B77: 2021-10-01 | C77: 61544 | D77: 66520 | E77: 26860 | F77: 39660 | G77: 39660
B78: 2021-10-01 | C78: 61545 | D78: 70660 | E78: 26740 | F78: 43920 | G78: 43920
B79: 2021-10-01 | C79: 61546 | D79: 70540 | E79: 26760 | F79: 43780 | G79: 43780
B80: 2021-10-01 | C80: 61547 | D80: 71500 | E80: 26760 | F80: 44740 | G80: 44740
B81: 2021-10-01 | C81: 61548 | D81: 65700 | E81: 26760 | F81: 38940 | G81: 38940
B82: 2021-10-01 | C82: 61549 | D82: 68600 | E82: 26720 | F82: 41880 | G82: 41880
B83: 2021-10-01 | C83: 61550 | D83: 70860 | E83: 26700 | F83: 44160 | G83: 44160
B84: 2021-10-01 | C84: 61551 | D84: 69560 | E84: 26580 | F84: 42980 | G84: 42980
B85: 2021-10-01 | C85: 61552 | D85: 70180 | E85: 26740 | F85: 43440 | G85: 43440
B86: 2021-10-01 | C86: 61553 | D86: 68820 | E86: 26740 | F86: 42080 | G86: 42080
B87: 2021-10-01 | C87: 61554 | D87: 68740 | E87: 26720 | F87: 42020 | G87: 42020
B88: 2021-10-01 | C88: 61555 | D88: 70480 | E88: 26720 | F88: 43760 | G88: 43760
B89: 2021-10-01 | C89: 61556 | D89: 68840 | E89: 26700 | F89: 42140 | G89: 42140
B90: 2021-10-01 | C90: 61557 | D90: 68160 | E90: 26720 | F90: 41440 | G90: 41440
B91: 2021-10-01 | C91: 61558 | D91: 70600 | E91: 26720 | F91: 43880 | G91: 43880
B92: 2021-10-01 | C92: 61559 | D92: 72040 | E92: 26740 | F92: 45300 | G92: 45300
B93: 2021-10-01 | C93: 61560 | D93: 71500 | E93: 26740 | F93: 44760 | G93: 44760
B94: 2021-10-01 | C94: 61561 | D94: 67480 | E94: 26740 | F94: 40740 | G94: 40740
B95: 2021-10-01 | C95: 61562 | D95: 69660 | E95: 26720 | F95: 42940 | G95: 42940
B96: 2021-10-01 | C96: 61563 | D96: 69360 | E96: 26740 | F96: 42620 | G96: 42620
B97: 2021-10-01 | C97: 61564 | D97: 59500 | E97: 26720 | F97: 32780 | G97: =F97 -> 32780
B98: 2021-10-01 | C98: 61565 | D98: 69160 | E98: 26760 | F98: 42400 | G98: 42400
B99: 2021-10-01 | C99: 61566 | D99: 65720 | E99: 26720 | F99: 39000 | G99: 39000
B100: 2021-10-01 | C100: 61567 | D100: 68880 | E100: 26740 | F100: 42140 | G100: 42140
B101: 2021-10-01 | C101: 61568 | D101: 68100 | E101: 26660 | F101: =D101-E101 -> 41440 | G101: 41440
B102: 2021-10-01 | C102: 61569 | D102: 71420 | E102: 26680 | F102: 44740 | G102: 44740
B103: 2021-10-01 | C103: 61570 | D103: 65800 | E103: 26660 | F103: 39140 | G103: 39140
B104: 2021-10-01 | C104: 61571 | D104: 71020 | E104: 26720 | F104: 44300 | G104: 44300
B105: 2021-10-01 | C105: 61572 | D105: 68620 | E105: 26680 | F105: 41940 | G105: 41940
B106: 2021-10-01 | C106: 61573 | D106: 72300 | E106: 26680 | F106: 45620 | G106: 45620
B107: 2021-10-01 | C107: 61574 | D107: 68020 | E107: 26720 | F107: 41300 | G107: 41300
B108: 2021-10-01 | C108: 61575 | D108: 64080 | E108: 26760 | F108: 37320 | G108: 37320
B109: 2021-10-01 | C109: 61576 | D109: 66360 | E109: 26760 | F109: 39600 | G109: 39600
B110: 2021-10-01 | C110: 61577 | D110: 65520 | E110: 26760 | F110: 38760 | G110: 38760
B111: 2021-10-01 | C111: 61578 | D111: 63420 | E111: 26740 | F111: 36680 | G111: 36680
B112: 2021-10-01 | C112: 61579 | D112: 61460 | E112: 26740 | F112: 34720 | G112: 34720
B113: 2021-10-01 | C113: 61580 | D113: 64140 | E113: 26760 | F113: 37380 | G113: 37380
B114: 2021-10-01 | C114: 61581 | D114: 66180 | E114: 26780 | F114: 39400 | G114: 39400
B115: 2021-10-01 | C115: 61582 | D115: 70420 | E115: 26760 | F115: 43660 | G115: 43660
B116: 2021-10-01 | C116: 61583 | D116: 64040 | E116: 26700 | F116: 37340 | G116: 37340 | L116: =F116 -> 37340
B117: 2021-10-01 | C117: 61584 | D117: 66760 | E117: 26740 | F117: 40020 | G117: 40020 | L117: =F117 -> 40020
B118: 2021-10-02 | C118: 61585 | D118: 66440 | E118: 26780 | F118: 39660 | G118: 39660
B119: =B118 -> 2021-10-02 | C119: 61586 | D119: 66660 | E119: 26780 | F119: 39880 | G119: 39880
B120: =B119 -> 2021-10-02 | C120: 61587 | D120: 68320 | E120: 26760 | F120: 41560 | G120: 41560
B121: 2021-10-02 | C121: 61588 | D121: 63620 | E121: 26760 | F121: 36860 | G121: 36860
B122: 2021-10-02 | C122: 61589 | D122: 62340 | E122: 26740 | F122: 35600 | G122: 35600
B123: 2021-10-02 | C123: 61590 | F123: 0 | G123: 0
B124: 2021-10-02 | C124: 61591 | D124: 64100 | E124: 26740 | F124: 37360 | G124: 37360
B125: 2021-10-02 | C125: 61592 | D125: 62640 | E125: 26740 | F125: 35900 | G125: 35900
B126: 2021-10-02 | C126: 61593 | D126: 64220 | E126: 26760 | F126: 37460 | G126: 37460
B127: 2021-10-02 | C127: 61594 | D127: 65800 | E127: 26740 | F127: 39060 | G127: 39060
B128: 2021-10-02 | C128: 61595 | D128: 64940 | E128: 26740 | F128: 38200 | G128: 38200
B129: 2021-10-02 | C129: 61596 | D129: 63560 | E129: 26720 | F129: 36840 | G129: 36840
B130: 2021-10-02 | C130: =1+C129 -> 61597 | D130: 64080 | E130: 26720 | F130: 37360 | G130: 37360
B131: 2021-10-02 | C131: 61598 | D131: 63060 | E131: 26720 | F131: 36340 | G131: 36340
B132: 2021-10-02 | C132: 61599 | D132: 66060 | E132: 26720 | F132: 39340 | G132: 39340
B133: 2021-10-02 | C133: 61600 | D133: 63020 | E133: 26740 | F133: 36280 | G133: 36280
B134: 2021-10-02 | C134: 61601 | F134: 0 | G134: 0
B135: 2021-10-02 | C135: 61602 | D135: 64240 | E135: 26720 | F135: 37520 | G135: 37520
B136: 2021-10-02 | C136: 61603 | D136: 60760 | E136: 26720 | F136: 34040 | G136: 34040
B137: 2021-10-02 | C137: 61604 | D137: 65320 | E137: 26720 | F137: 38600 | G137: 38600
B138: 2021-10-02 | C138: 61605 | D138: 64120 | E138: 26720 | F138: 37400 | G138: 37400
B139: 2021-10-02 | C139: 61606 | D139: 64460 | E139: 26720 | F139: 37740 | G139: 37740
B140: 2021-10-02 | C140: 61607 | D140: 63300 | E140: 26700 | F140: 36600 | G140: 36600
B141: 2021-10-02 | C141: 61608 | D141: 62140 | E141: 26680 | F141: 35460 | G141: 35460
B142: 2021-10-02 | C142: 61609 | D142: 65280 | E142: 26700 | F142: 38580 | G142: 38580
B143: 2021-10-02 | C143: 61610 | D143: 71420 | E143: 26680 | F143: 44740 | G143: 44740
B144: 2021-10-02 | C144: 61611 | D144: 69020 | E144: 26580 | F144: 42440 | G144: 42440
B145: 2021-10-02 | C145: 61612 | D145: 67180 | E145: 26600 | F145: 40580 | G145: 40580
B146: 2021-10-02 | C146: 61613 | D146: 67620 | E146: 26620 | F146: 41000 | G146: 41000
B147: 2021-10-02 | C147: 61614 | D147: 69280 | E147: 26600 | F147: 42680 | G147: 42680
B148: 2021-10-02 | C148: 61615 | D148: 70340 | E148: 26640 | F148: 43700 | G148: 43700
B149: 2021-10-02 | C149: 61616 | D149: 68740 | E149: 26640 | F149: 42100 | G149: 42100
B150: 2021-10-02 | C150: 61617 | D150: 68000 | E150: 26640 | F150: 41360 | G150: 41360
B151: 2021-10-02 | C151: 61618 | D151: 66540 | E151: 26600 | F151: 39940 | G151: 39940
B152: 2021-10-02 | C152: 61619 | D152: 66600 | E152: 26600 | F152: 40000 | G152: 40000
B153: 2021-10-02 | C153: 61620 | D153: 66100 | E153: 26580 | F153: 39520 | G153: 39520
B154: 2021-10-02 | C154: 61621 | D154: 67100 | E154: 26620 | F154: 40480 | G154: 40480
B155: 2021-10-02 | C155: 61622 | D155: 69760 | E155: 26580 | F155: 43180 | G155: 43180
B156: 2021-10-02 | C156: 61623 | D156: 53080 | E156: 26620 | F156: 26460 | G156: 26460
B157: 2021-10-02 | C157: 61624 | D157: 68280 | E157: 26880 | F157: 41400 | G157: 41400
B158: 2021-10-02 | C158: 61625 | D158: 68820 | E158: 26840 | F158: 41980 | G158: 41980
B159: 2021-10-02 | C159: 61626 | D159: 70080 | E159: 26900 | F159: 43180 | G159: 43180
B160: 2021-10-02 | C160: 61627 | D160: 70260 | E160: 26820 | F160: 43440 | G160: 43440
B161: 2021-10-02 | C161: 61628 | D161: 69860 | E161: 26840 | F161: 43020 | G161: =F161 -> 43020
B162: 2021-10-02 | C162: 61629 | D162: 66500 | E162: 26820 | F162: 39680 | G162: 39680
B163: 2021-10-02 | C163: 61630 | D163: 68060 | E163: 26800 | F163: 41260 | G163: 41260
B164: 2021-10-02 | C164: 61631 | D164: 67900 | E164: 26840 | F164: 41060 | G164: 41060
B165: 2021-10-02 | C165: 61632 | D165: 49060 | E165: 26780 | F165: =D165-E165 -> 22280 | G165: 22280
B166: 2021-10-02 | C166: 61633 | D166: 68580 | E166: 26780 | F166: 41800 | G166: 41800
B167: 2021-10-02 | C167: 61634 | D167: 68120 | E167: 26780 | F167: 41340 | G167: 41340
B168: 2021-10-02 | C168: 61635 | D168: 70400 | E168: 26760 | F168: 43640 | G168: 43640
B169: 2021-10-02 | C169: 61636 | D169: 62740 | E169: 26820 | F169: 35920 | G169: 35920
B170: 2021-10-02 | C170: 61637 | D170: 62820 | E170: 26820 | F170: 36000 | G170: 36000
B171: 2021-10-02 | C171: 61638 | D171: 61900 | E171: 26820 | F171: 35080 | G171: 35080
B172: 2021-10-02 | C172: 61639 | D172: 64360 | E172: 26820 | F172: 37540 | G172: 37540
B173: 2021-10-02 | C173: 61640 | D173: 60780 | E173: 26820 | F173: 33960 | G173: 33960
B174: 2021-10-02 | C174: 61641 | D174: 66500 | E174: 26820 | F174: 39680 | G174: 39680
B175: 2021-10-02 | C175: 61642 | D175: 62560 | E175: 26800 | F175: 35760 | G175: 35760
B176: 2021-10-02 | C176: 61643 | D176: 63700 | E176: 26820 | F176: 36880 | G176: 36880
B177: 2021-10-02 | C177: 61644 | D177: 63220 | E177: 26820 | F177: 36400 | G177: 36400
B178: 2021-10-02 | C178: 61645 | D178: 64380 | E178: 26820 | F178: 37560 | G178: 37560
B179: 2021-10-02 | C179: 61646 | D179: 63820 | E179: 26780 | F179: 37040 | L179: =F179 -> 37040
B180: 2021-10-02 | C180: 61647 | D180: 56120 | E180: 26820 | F180: 29300 | L180: =F180 -> 29300
B181: 2021-10-03 | C181: 61648 | D181: 64100 | E181: 26800 | F181: 37300 | G181: =F181 -> 37300
B182: =B181 -> 2021-10-03 | C182: 61649 | D182: 63480 | E182: 26800 | F182: 36680 | G182: =F182 -> 36680
B183: =B182 -> 2021-10-03 | C183: 61650 | D183: 62680 | E183: 26780 | F183: 35900 | G183: 35900
B184: 2021-10-03 | C184: 61651 | D184: 65360 | E184: 26820 | F184: 38540 | G184: 38540
B185: 2021-10-03 | C185: 61652 | D185: 66160 | E185: 26820 | F185: 39340 | G185: 39340
B186: 2021-10-03 | C186: 61653 | D186: 64640 | E186: 26780 | F186: 37860 | G186: 37860
B187: 2021-10-03 | C187: 61654 | D187: 64940 | E187: 26800 | F187: 38140 | G187: 38140
B188: 2021-10-03 | C188: 61655 | D188: 64780 | E188: 26800 | F188: 37980 | G188: 37980
B189: 2021-10-03 | C189: 61656 | D189: 64120 | E189: 26820 | F189: 37300 | G189: 37300
B190: 2021-10-03 | C190: 61657 | F190: 0 | G190: 0
B191: 2021-10-03 | C191: 61658 | D191: 63880 | E191: 26820 | F191: 37060 | G191: 37060
B192: 2021-10-03 | C192: 61659 | D192: 64420 | E192: 26800 | F192: 37620 | G192: 37620
B193: 2021-10-03 | C193: 61660 | D193: 65200 | E193: 26800 | F193: 38400 | G193: 38400
B194: 2021-10-03 | C194: =1+C193 -> 61661 | D194: 64220 | E194: 26760 | F194: 37460 | G194: 37460
B195: 2021-10-03 | C195: 61662 | D195: 66280 | E195: 26800 | F195: 39480 | G195: 39480
B196: 2021-10-03 | C196: 61663 | D196: 64160 | E196: 26780 | F196: 37380 | G196: 37380
B197: 2021-10-03 | C197: 61664 | D197: 63460 | E197: 26800 | F197: 36660 | G197: 36660
B198: 2021-10-03 | C198: 61665 | D198: 65920 | E198: 26800 | F198: 39120 | G198: 39120
B199: 2021-10-03 | C199: 61666 | D199: 64560 | E199: 26780 | F199: 37780 | G199: 37780
B200: 2021-10-03 | C200: 61667 | D200: 64200 | E200: 26760 | F200: 37440 | G200: 37440
B201: 2021-10-03 | C201: 61668 | D201: 64620 | E201: 26780 | F201: 37840 | G201: 37840
B202: 2021-10-03 | C202: 61669 | F202: 0 | G202: 0
... 9817 more rows

Sheet Grand Total
L2: Louisiana Sugar Cane Cooperative, Inc.
I5: ='2021 Sugar'!K4 -> Location Storage
C7: ='2021 Sugar'!G6 -> SM#1 | D7: ='2021 Sugar'!H6 -> SM #2 | E7: BB from Hopper | F7: BB from SM#1 | G7: BB from SM#2 | H7: CALDWELL FROM#1 | I7: CALDWELL FROM#2 | J7: SM#1 TO DOMINO | K7: SM#2 TO DOMINO | L7: ='2021 Sugar'!L6 -> HOLDING
C8: =SUM('2021 Sugar'!G7:G11476) -> 182461340 | D8: =SUM('2021 Sugar'!H7:H11476) -> 183388300 | E8: =SUM('2021 Sugar'!I7:I11476) -> 31224220 | F8: =SUM('2021 SUGAR SHIPPING'!H7:H18126) -> 2256400 | G8: =SUM('2021 SUGAR SHIPPING'!J7:J18126) -> 2581600 | H8: =SUM('2021 SUGAR SHIPPING'!V7:V18184) -> 23549120 | I8: =SUM('2021 SUGAR SHIPPING'!W7:W18184) -> 23383770 | J8: =SUM('2021 SUGAR SHIPPING'!X7:X18184) -> 330700 | K8: =SUM('2021 SUGAR SHIPPING'!Y7:Y18184) -> 0 | L8: =SUM('2021 Sugar'!L7:L11476) -> 3107900
M15: `

Sheet 2021 SUGAR SHIPPING
O2: Louisiana Sugar Cane Cooperative, Inc.
R4: Location Storage
B6: Date | C6: Truck No. | D6: Ticket no. | E6: Gross wt | F6: Tare wt | G6: Net wt | H6: SM#1 to BB | I6: LSR SM#1 | J6: SM#2 to BB | K6: LSR SM#2 | L6: LSR BB | M6: CSC Trucks SM#1 | N6: CSC Trucks SM#2 | O6: CSC Trucks BB | P6: CSC Barge SM#1 | Q6: CSC Barge SM#2 | R6: CSC Barge BB | S6: CSC RailCars SM#1 | T6: CSC RailCars SM#2 | U6: CSC RailCars BB | V6: CALDWELL SM#1 | W6: CALDWELL SM#2 | X6: SM#1 TO DOMINO | Y6: SM#2 TO DOMINO | Z6: SM#1 TO SUPREME | AA6: SM#2 TO SUPREME | AB6: CALDWELL TO LSR
B7: 2021-10-10 | D7: 9110 | E7: 82260 | F7: 27160 | G7: =E7-F7 -> 55100 | M7: =G7 -> 55100
B8: =B7 -> 2021-10-10 | D8: =1+D7 -> 9111 | E8: 76540 | F8: 29100 | G8: 47440 | M8: 47440
B9: 2021-10-10 | D9: 9112 | E9: 76680 | F9: 28680 | G9: 48000 | M9: 48000
B10: 2021-10-10 | D10: 9113 | G10: 0 | M10: 0
B11: 2021-10-10 | D11: 9114 | E11: 85200 | F11: 29520 | G11: 55680 | M11: 55680
B12: 2021-10-10 | D12: 9115 | E12: 80280 | F12: 28900 | G12: 51380 | M12: 51380
B13: 2021-10-10 | D13: 9116 | E13: 82320 | F13: 30160 | G13: 52160 | M13: 52160
B14: 2021-10-10 | D14: 9117 | E14: 80260 | F14: 28060 | G14: 52200 | M14: 52200
B15: 2021-10-10 | D15: 4185 | E15: 80220 | F15: 28060 | G15: 52160 | M15: 52160
B16: 2021-10-11 | C16: Ep203 | D16: 9118 | E16: 95180 | F16: 33620 | G16: 61560 | I16: =G16 -> 61560
B17: =B16 -> 2021-10-11 | C17: 86 | D17: 9119 | E17: 92500 | F17: 33980 | G17: 58520 | I17: 58520
B18: 2021-10-11 | C18: 01 | D18: 9120 | E18: 88800 | F18: 32460 | G18: 56340 | I18: 56340
B19: 2021-10-11 | C19: 189 | D19: 9121 | E19: 88700 | F19: 35100 | G19: 53600 | I19: 53600
B20: 2021-10-11 | C20: 011 | D20: 9122 | E20: 90400 | F20: 34740 | G20: 55660 | I20: 55660
B21: 2021-10-11 | C21: 203 | D21: 9123 | E21: 84260 | F21: 33520 | G21: 50740 | I21: 50740
B22: 2021-10-11 | C22: 189 | D22: 9124 | E22: 92400 | F22: 35020 | G22: 57380 | I22: 57380
B23: 2021-10-11 | C23: 011 | D23: 9125 | E23: 83780 | F23: 34320 | G23: 49460 | I23: 49460
B24: 2021-10-11 | C24: CSC189 | D24: 8884 | E24: 78720 | F24: 28200 | G24: 50520 | M24: =G24 -> 50520
B25: 2021-10-11 | C25: 116 | D25: 8885 | E25: 84520 | F25: 30260 | G25: 54260 | M25: 54260
B26: 2021-10-11 | C26: 10116 | D26: 8899 | E26: 78960 | F26: 27860 | G26: 51100 | M26: 51100
B27: 2021-10-11 | C27: 237 | D27: 8900 | E27: 81000 | F27: 30260 | G27: 50740 | M27: 50740
B28: 2021-10-11 | C28: 8972 | D28: 8901 | E28: 80000 | F28: 29100 | G28: 50900 | M28: 50900
B29: 2021-10-11 | C29: 04 | D29: 8902 | E29: 80220 | F29: 28820 | G29: 51400 | M29: 51400
B30: 2021-10-11 | C30: 225 | D30: 8904 | E30: 98640 | F30: 27380 | G30: 71260 | M30: 71260
B31: 2021-10-11 | C31: 16 | D31: 8905 | E31: 79800 | F31: 29700 | G31: 50100 | M31: 50100
B32: 2021-10-11 | C32: 9134 | D32: 8907 | E32: 80460 | F32: 28140 | G32: 52320 | M32: 52320
B33: 2021-10-11 | C33: 10110 | D33: 8908 | E33: 81800 | F33: 28380 | G33: 53420 | M33: 53420
B34: 2021-10-11 | C34: 275 | D34: 8909 | E34: 84920 | F34: 28680 | G34: 56240 | M34: 56240
B35: 2021-10-11 | C35: 12 | D35: 8910 | E35: 82540 | F35: 27840 | G35: 54700 | M35: 54700
B36: 2021-10-11 | C36: 9550 | D36: 8911 | E36: 79260 | F36: 28100 | G36: 51160 | M36: 51160
B37: 2021-10-11 | C37: 229 | D37: 8912 | E37: 87100 | F37: 28940 | G37: 58160 | M37: 58160
B38: 2021-10-11 | C38: 06 | D38: 8913 | E38: 88960 | F38: 25240 | G38: 63720 | M38: 63720
B39: 2021-10-11 | C39: 196 | D39: 8914 | E39: 77780 | F39: 28860 | G39: =E39-F39 -> 48920 | M39: 48920
B40: 2021-10-11 | C40: 193 | D40: 8915 | E40: 83640 | F40: 30540 | G40: 53100 | M40: 53100
B41: 2021-10-11 | C41: 190 | D41: 8916 | E41: 81840 | F41: 28500 | G41: 53340 | M41: 53340
B42: 2021-10-11 | C42: 228 | D42: 8917 | E42: 81020 | F42: 29520 | G42: 51500 | M42: 51500
B43: 2021-10-11 | C43: 189 | D43: 8918 | E43: 82560 | F43: 28100 | G43: 54460 | M43: 54460
B44: 2021-10-12 | C44: csc229 | D44: =1+D43 -> 8919 | E44: 87900 | F44: 28700 | G44: 59200 | M44: 59200
B45: =B44 -> 2021-10-12 | C45: 8 | D45: =1+D44 -> 8920 | E45: 81500 | F45: 30180 | G45: 51320 | M45: 51320
B46: 2021-10-12 | C46: 16 | D46: 8921 | E46: 79980 | F46: 29940 | G46: 50040 | M46: 50040
B47: 2021-10-12 | C47: 225 | D47: 8922 | E47: 89740 | F47: 26920 | G47: 62820 | M47: 62820
B48: 2021-10-12 | C48: 12 | D48: 8923 | E48: 85000 | F48: 27540 | G48: 57460 | M48: 57460
B49: 2021-10-12 | D49: 8924 | G49: 0 | M49: 0
B50: 2021-10-12 | C50: 237 | D50: 8925 | E50: 77980 | F50: 30340 | G50: 47640 | M50: 47640
B51: 2021-10-12 | C51: 116 | D51: 8926 | E51: 85200 | F51: 29360 | G51: 55840 | M51: 55840
B52: 2021-10-12 | C52: 275 | D52: 8927 | E52: 82840 | F52: 28360 | G52: 54480 | M52: 54480
B53: 2021-10-12 | D53: 8928 | G53: 0 | M53: 0
B54: 2021-10-12 | C54: 06 | D54: 8929 | E54: 85400 | F54: 25420 | G54: 59980 | M54: 59980
B55: 2021-10-12 | C55: 148 | D55: 8930 | G55: 0 | M55: 0
B56: 2021-10-12 | C56: 305 | D56: 8931 | E56: 77540 | F56: 29400 | G56: 48140 | M56: 48140
B57: 2021-10-12 | D57: 8932 | G57: 0 | M57: 0
B58: 2021-10-12 | C58: 305 | D58: 8933 | E58: 83900 | F58: 26040 | G58: 57860 | M58: 57860
B59: 2021-10-12 | C59: 189 | D59: 8934 | E59: 83000 | F59: 28440 | G59: 54560 | M59: 54560
B60: 2021-10-12 | C60: 228 | D60: 8935 | E60: 80300 | F60: 28520 | G60: 51780 | M60: 51780
B61: 2021-10-12 | C61: 04 | D61: 8936 | E61: 81400 | F61: 28640 | G61: 52760 | M61: 52760
B62: 2021-10-12 | C62: 193 | D62: 8937 | E62: 81980 | F62: 30480 | G62: 51500 | M62: 51500
B63: 2021-10-12 | C63: 190 | D63: 8938 | E63: 80080 | F63: 28340 | G63: 51740 | M63: 51740
B64: 2021-10-12 | C64: 185 | D64: 8939 | E64: 80880 | F64: 28640 | G64: 52240 | M64: 52240
B65: 2021-10-12 | C65: Ep203 | D65: 8886 | E65: 96200 | F65: 33940 | G65: 62260 | I65: =G65 -> 62260
B66: 2021-10-12 | C66: ep86 | D66: =1+D65 -> 8887 | E66: 95600 | F66: 33760 | G66: 61840 | I66: 61840
B67: 2021-10-12 | C67: 01 | D67: 8888 | E67: 87540 | F67: 32120 | G67: 55420 | I67: 55420
B68: 2021-10-12 | C68: 011 | D68: 8889 | E68: 87400 | F68: 34940 | G68: 52460 | I68: 52460
B69: 2021-10-12 | C69: ep203 | D69: 8890 | E69: 95940 | F69: 33700 | G69: 62240 | I69: 62240
B70: 2021-10-12 | C70: ep86 | D70: 8891 | E70: 99240 | F70: 33540 | G70: 65700 | I70: 65700
B71: 2021-10-12 | C71: 01 | D71: 8892 | E71: 90300 | F71: 32000 | G71: =E71-F71 -> 58300 | I71: 58300
B72: 2021-10-12 | C72: 203 | D72: 8893 | E72: 91740 | F72: 33520 | G72: 58220 | I72: 58220
B73: 2021-10-12 | C73: 203 | D73: 8894 | E73: 88640 | F73: 33160 | G73: 55480 | I73: 55480
B74: 2021-10-12 | C74: 86 | D74: 8895 | E74: 93620 | F74: 33940 | G74: 59680 | I74: 59680
B75: 2021-10-12 | C75: 5Laca | D75: 8896 | E75: 95440 | F75: 34400 | G75: 61040 | I75: 61040
B76: 2021-10-13 | C76: csc12 | D76: 10006 | E76: 81800 | F76: 27740 | G76: 54060 | M76: =G76 -> 54060
B77: =B76 -> 2021-10-13 | C77: 229 | D77: 10007 | E77: 88880 | F77: 28740 | G77: 60140 | M77: 60140
B78: 2021-10-13 | C78: 8546 | D78: 10008 | E78: 79920 | F78: 27460 | G78: 52460 | M78: 52460
B79: 2021-10-13 | C79: 275 | D79: 10009 | E79: 79840 | F79: 28740 | G79: 51100 | M79: 51100
B80: 2021-10-13 | C80: 9298 | D80: 10012 | E80: 80040 | F80: 28380 | G80: 51660 | M80: 51660
B81: 2021-10-13 | C81: 198 | D81: 10013 | E81: 82440 | F81: 30520 | G81: 51920 | M81: 51920
B82: 2021-10-13 | C82: 196 | D82: 10014 | E82: 77020 | F82: 28780 | G82: 48240 | M82: 48240
B83: 2021-10-13 | C83: 06 | D83: 10015 | E83: 83720 | F83: 25340 | G83: 58380 | M83: 58380
B84: 2021-10-13 | C84: 237 | D84: 10016 | E84: 79780 | F84: 30780 | G84: 49000 | M84: 49000
B85: 2021-10-13 | C85: 116 | D85: 10017 | E85: 82340 | F85: 29340 | G85: 53000 | M85: 53000
B86: 2021-10-13 | C86: 305 | D86: 10018 | E86: 83820 | F86: 26020 | G86: 57800 | M86: 57800
B87: 2021-10-13 | C87: 228 | D87: 10019 | E87: 85360 | F87: 28560 | G87: 56800 | M87: 56800
B88: 2021-10-13 | C88: D4 | D88: 10033 | E88: 80860 | F88: 28620 | G88: 52240 | M88: 52240
B89: 2021-10-13 | C89: 01 | D89: 10035 | E89: 79540 | F89: 28780 | G89: 50760 | M89: 50760
B90: 2021-10-13 | C90: 8 | D90: 10036 | E90: 81620 | F90: 29900 | G90: 51720 | M90: 51720
B91: 2021-10-13 | C91: 189 | D91: 10037 | E91: 79660 | F91: 28380 | G91: 51280 | M91: 51280
B92: 2021-10-13 | C92: 225 | D92: 10038 | E92: 96780 | F92: 27980 | G92: 68800 | M92: 68800
B93: 2021-10-13 | C93: 193 | D93: 10039 | E93: 82420 | F93: 30540 | G93: 51880 | M93: 51880
B94: 2021-10-13 | C94: 190 | D94: 10040 | E94: 82940 | F94: 28440 | G94: 54500 | M94: 54500
B95: 2021-10-13 | C95: 226 | D95: 10041 | E95: 80900 | F95: 28220 | G95: 52680 | M95: 52680
B96: 2021-10-13 | C96: 227 | D96: 10042 | E96: 80120 | F96: 29200 | G96: 50920 | M96: 50920
B97: 2021-10-13 | C97: 5LACA | D97: 8940 | E97: 96860 | F97: 34960 | G97: 61900 | I97: =G97 -> 61900
B98: 2021-10-13 | C98: EP203 | D98: 9288 | E98: 97200 | F98: 33000 | G98: 64200 | I98: 64200
B99: 2021-10-13 | C99: 01 | D99: 9289 | E99: 87600 | F99: 31680 | G99: 55920 | I99: 55920
B100: 2021-10-13 | C100: 10LACA | D100: 9290 | E100: 99560 | F100: 34420 | G100: 65140 | I100: 65140
B101: 2021-10-13 | C101: 011SWSTIX | D101: 9292 | E101: 85800 | F101: 34460 | G101: 51340 | I101: 51340
B102: 2021-10-13 | C102: 4LACA | D102: 9293 | E102: 100600 | F102: 34440 | G102: 66160 | I102: 66160
B103: 2021-10-13 | C103: 12LACA | D103: 9997 | E103: 100360 | F103: 34720 | G103: =E103-F103 -> 65640 | I103: 65640
B104: 2021-10-13 | C104: 14LACA | D104: 9999 | E104: 98800 | F104: 34740 | G104: 64060 | I104: 64060
B105: 2021-10-13 | C105: 2LACA | D105: 10000 | E105: 97840 | F105: 34740 | G105: 63100 | I105: 63100
B106: 2021-10-13 | C106: 5LACA | D106: 10001 | E106: 97080 | F106: 34640 | G106: 62440 | I106: 62440
B107: 2021-10-13 | C107: 8LACA | D107: 10002 | E107: 94440 | F107: 34280 | G107: 60160 | I107: 60160
B108: 2021-10-13 | C108: 16LACA | D108: 10003 | E108: 97880 | F108: 35080 | G108: 62800 | I108: 62800
B109: =B108 -> 2021-10-13 | C109: 12LACA | D109: 10004 | E109: 93780 | F109: 35180 | G109: 58600 | I109: 58600
B110: 2021-10-13 | C110: 10LACA | D110: 10005 | E110: 93240 | F110: 33820 | G110: 59420 | I110: 59420
B111: 2021-10-13 | C111: 4LACA | D111: 10020 | E111: 91940 | F111: 33780 | G111: 58160 | I111: 58160
B112: 2021-10-13 | C112: 15LACA | D112: 10021 | E112: 94780 | F112: 34300 | G112: 60480 | I112: 60480
B113: 2021-10-13 | C113: 203EP | D113: 10022 | E113: 88580 | F113: 34040 | G113: 54540 | I113: 54540
B114: 2021-10-13 | C114: 6 | D114: 10023 | E114: 90500 | F114: 34080 | G114: 56420 | I114: 56420
B115: 2021-10-13 | C115: 14LACA | D115: 10024 | E115: 96180 | F115: 34400 | G115: 61780 | I115: 61780
B116: 2021-10-13 | C116: 2LACA | D116: 10025 | E116: 95280 | F116: 34340 | G116: 60940 | I116: 60940
B117: 2021-10-13 | C117: 5LACA | D117: 10026 | E117: 96800 | F117: 34360 | G117: 62440 | I117: 62440
B118: 2021-10-13 | C118: 18LACA | D118: 10027 | E118: 96940 | F118: 34440 | G118: 62500 | I118: 62500
B119: 2021-10-13 | C119: 7LACA | D119: 10028 | E119: 93880 | F119: 34100 | G119: 59780 | I119: 59780
B120: 2021-10-13 | C120: 86EP | D120: 10029 | E120: 93960 | F120: 33340 | G120: 60620 | I120: 60620
B121: 2021-10-13 | C121: 15LACA | D121: 10030 | E121: 98640 | F121: 33900 | G121: 64740 | I121: 64740
B122: 2021-10-13 | C122: 203EP | D122: 10031 | E122: 93520 | F122: 33760 | G122: 59760 | I122: 59760
B123: 2021-10-13 | C123: 011SWSTIX | D123: 10032 | E123: 91560 | F123: 34900 | G123: 56660 | I123: 56660
B124: 2021-10-13 | C124: 6LACA | D124: 4193 | E124: 96660 | F124: 34840 | G124: 61820 | I124: 61820
B125: 2021-10-13 | C125: 18LACA | D125: 4194 | E125: 99700 | F125: 34660 | G125: 65040 | I125: 65040
B126: 2021-10-13 | C126: 8LACA | D126: 4195 | E126: 97380 | F126: 34580 | G126: 62800 | I126: 62800
B127: 2021-10-13 | C127: 16LACA | D127: 4196 | E127: 95340 | F127: 34540 | G127: 60800 | I127: 60800
B128: 2021-10-13 | C128: 10LACA | D128: 4198 | E128: 98980 | F128: 34140 | G128: 64840 | I128: 64840
B129: 2021-10-13 | C129: 7LACA | D129: 4199 | E129: 99240 | F129: 34460 | G129: 64780 | I129: 64780
B130: 2021-10-13 | C130: 4LACA | D130: 4200 | E130: 98500 | F130: 34460 | G130: 64040 | I130: 64040
B131: 2021-10-13 | C131: 15LACA | D131: 4201 | E131: 95640 | F131: 34660 | G131: 60980 | I131: 60980
B132: 2021-10-13 | C132: 6LACA | D132: 4202 | E132: 99200 | F132: 34400 | G132: 64800 | I132: 64800
B133: 2021-10-13 | C133: 14LACA | D133: 4220 | E133: 96520 | F133: 34000 | G133: 62520 | I133: 62520
B134: 2021-10-13 | C134: 2LACA | D134: 4221 | E134: 96700 | F134: 33980 | G134: 62720 | I134: 62720
B135: 2021-10-13 | C135: 5Laca | D135: 4222 | E135: 97100 | F135: 34880 | G135: =E135-F135 -> 62220 | I135: 62220
B136: 2021-10-14 | C136: CSC229 | D136: 10047 | E136: 86840 | F136: 28880 | G136: 57960 | M136: =G136 -> 57960
B137: =B136 -> 2021-10-14 | C137: 9550 | D137: =1+D136 -> 10048 | E137: 79460 | F137: 28400 | G137: 51060 | M137: 51060
B138: 2021-10-14 | C138: CSC12 | D138: 10049 | E138: 83000 | F138: 28640 | G138: 54360 | M138: 54360
B139: 2021-10-14 | C139: 148 | D139: 10050 | E139: 79360 | F139: 29760 | G139: 49600 | M139: 49600
B140: 2021-10-14 | C140: 06 | D140: 10051 | E140: 86400 | F140: 25380 | G140: 61020 | M140: 61020
B141: 2021-10-14 | C141: 116 | D141: 10052 | E141: 83540 | F141: 29540 | G141: 54000 | M141: 54000
B142: 2021-10-14 | C142: 10122 | D142: 10053 | E142: 79300 | F142: 28220 | G142: 51080 | M142: 51080
B143: 2021-10-14 | C143: 10207 | D143: 10054 | E143: 81060 | F143: 28320 | G143: 52740 | M143: 52740
B144: 2021-10-14 | C144: 305 | D144: 10055 | E144: 80760 | F144: 25900 | G144: 54860 | M144: 54860
B145: 2021-10-14 | C145: 196 | D145: 10056 | E145: 79140 | F145: 28900 | G145: 50240 | M145: 50240
B146: 2021-10-14 | C146: 228 | D146: 10057 | E146: 79700 | F146: 28820 | G146: 50880 | M146: 50880
B147: 2021-10-14 | C147: 189 | D147: 10058 | E147: 84240 | F147: 28560 | G147: 55680 | M147: 55680
B148: 2021-10-14 | C148: 185 | D148: 10059 | E148: 78520 | F148: 28320 | G148: 50200 | M148: 50200
B149: 2021-10-14 | C149: 01 | D149: 10060 | E149: 83000 | F149: 29580 | G149: 53420 | M149: 53420
B150: 2021-10-14 | C150: 227 | D150: 10061 | E150: 84120 | F150: 29280 | G150: 54840 | M150: 54840
B151: 2021-10-14 | C151: H226 | D151: 10062 | E151: 83960 | F151: 27960 | G151: 56000 | M151: 56000
B152: 2021-10-14 | C152: 193 | D152: 10063 | E152: 84440 | F152: 31100 | G152: 53340 | M152: 53340
B153: 2021-10-14 | C153: 198 | D153: 10064 | E153: 79640 | F153: 30640 | G153: 49000 | M153: 49000
B154: 2021-10-14 | C154: 001 | D154: 10065 | E154: 86900 | F154: 29500 | G154: 57400 | M154: 57400
B155: 2021-10-14 | C155: 190 | D155: 10066 | E155: 78900 | F155: 30480 | G155: 48420 | M155: 48420
B156: 2021-10-14 | C156: ep86 | D156: 9172 | E156: 93800 | F156: 33440 | G156: 60360 | I156: =G156 -> 60360
B157: 2021-10-14 | C157: ep203 | D157: =1+D156 -> 9173 | E157: 92980 | F157: 33560 | G157: 59420 | I157: 59420
B158: 2021-10-14 | C158: 11 | D158: 9174 | E158: 87600 | F158: 34660 | G158: 52940 | I158: 52940
B159: 2021-10-14 | C159: 4 | D159: 9175 | E159: 100860 | F159: 34400 | G159: 66460 | I159: 66460
B160: 2021-10-14 | C160: 11 | D160: 9176 | E160: 84640 | F160: 35040 | G160: 49600 | I160: 49600
B161: 2021-10-14 | C161: 15 | D161: 9177 | E161: 98200 | F161: 34180 | G161: 64020 | I161: 64020
B162: 2021-10-14 | C162: 86 | D162: 9178 | E162: 93420 | F162: 33880 | G162: 59540 | I162: 59540
B163: 2021-10-14 | C163: 1 | D163: 9231 | E163: 88400 | F163: 31820 | G163: 56580 | I163: 56580
B164: 2021-10-14 | C164: 4 | D164: 9250 | E164: 100960 | F164: 33660 | G164: 67300 | I164: 67300
B165: 2021-10-14 | C165: 18 | D165: =1+D164 -> 9251 | E165: 99640 | F165: 34100 | G165: 65540 | I165: 65540
B166: 2021-10-14 | C166: 7 | D166: =1+D165 -> 9252 | E166: 96660 | F166: 34680 | G166: 61980 | I166: 61980
B167: 2021-10-14 | C167: 8 | D167: =1+D166 -> 9253 | E167: 96460 | F167: 34060 | G167: =E167-F167 -> 62400 | I167: 62400
B168: 2021-10-14 | C168: 203 | D168: =1+D167 -> 9254 | E168: 93940 | F168: 33780 | G168: 60160 | I168: 60160
B169: =B168 -> 2021-10-14 | C169: 10 | D169: 4223 | E169: 99700 | F169: 34380 | G169: 65320 | I169: 65320
B170: 2021-10-14 | C170: 8 | D170: =1+D169 -> 4224 | E170: 96420 | F170: 34760 | G170: 61660 | I170: 61660
B171: 2021-10-14 | C171: 16 | D171: =1+D170 -> 4225 | E171: 97000 | F171: 34840 | G171: 62160 | I171: 62160
B172: 2021-10-14 | C172: 6 | D172: =1+D171 -> 4226 | E172: 95300 | F172: 34580 | G172: 60720 | I172: 60720
B173: 2021-10-14 | C173: 18 | D173: 4228 | E173: 97140 | F173: 34080 | G173: 63060 | I173: 63060
B174: 2021-10-14 | C174: 7 | D174: =1+D173 -> 4229 | E174: 96520 | F174: 34040 | G174: 62480 | I174: 62480
B175: 2021-10-14 | C175: 8 | D175: 4230 | E175: 97480 | F175: 34420 | G175: 63060 | I175: 63060
B176: 2021-10-14 | C176: 12 | D176: 4231 | E176: 94800 | F176: 34540 | G176: 60260 | I176: 60260
B177: 2021-10-14 | C177: 16 | D177: 4232 | E177: 95420 | F177: 34560 | G177: 60860 | I177: 60860
B178: 2021-10-14 | C178: 6 | D178: 4233 | E178: 96300 | F178: 34340 | G178: 61960 | I178: 61960
B179: 2021-10-14 | C179: 4 | D179: 4234 | E179: 97460 | F179: 34140 | G179: 63320 | I179: 63320
B180: 2021-10-14 | C180: 18 | D180: 4235 | E180: 98020 | F180: 33820 | G180: 64200 | I180: 64200
B181: 2021-10-14 | C181: 15 | D181: 4236 | E181: 98940 | F181: 34500 | G181: 64440 | I181: 64440
B182: 2021-10-14 | C182: 7 | D182: 4237 | E182: 96100 | F182: 33740 | G182: 62360 | I182: 62360
B183: 2021-10-14 | C183: 14 | D183: 4238 | E183: 97920 | F183: 34540 | G183: 63380 | I183: 63380
B184: 2021-10-14 | C184: 2 | D184: 4239 | E184: 97820 | F184: 34940 | G184: 62880 | I184: 62880
B185: 2021-10-14 | C185: 16 | D185: 4241 | E185: 95920 | F185: 34220 | G185: 61700 | I185: 61700
B186: 2021-10-14 | C186: 12 | D186: =1+D185 -> 4242 | E186: 94180 | F186: 34920 | G186: 59260 | I186: 59260
B187: 2021-10-14 | C187: 5 | D187: =1+D186 -> 4243 | E187: 92240 | F187: 34660 | G187: 57580 | I187: 57580
B188: 2021-10-14 | C188: 5 | D188: 4250 | E188: 96160 | F188: 34360 | G188: 61800 | I188: 61800
B189: 2021-10-14 | C189: 6 | D189: 4251 | E189: 92420 | F189: 34720 | G189: 57700 | I189: 57700
B190: 2021-10-14 | C190: 8 | D190: 4252 | E190: 95440 | F190: 34840 | G190: 60600 | I190: 60600
B191: 2021-10-15 | C191: csc189 | D191: 10069 | E191: 82800 | F191: 28580 | G191: 54220 | M191: =G191 -> 54220
B192: =B191 -> 2021-10-15 | C192: 196 | D192: 10071 | E192: 79860 | F192: 29220 | G192: 50640 | M192: =G192 -> 50640
B193: =B192 -> 2021-10-15 | C193: 06 | D193: 10072 | E193: 81800 | F193: 25460 | G193: 56340 | M193: 56340
B194: 2021-10-15 | C194: 193 | D194: 10073 | E194: 82780 | F194: 30400 | G194: 52380 | M194: 52380
B195: 2021-10-15 | C195: 01 | D195: 10074 | E195: 83180 | F195: 28540 | G195: 54640 | M195: 54640
B196: 2021-10-15 | C196: 116 | D196: 10075 | E196: 83880 | F196: 30080 | G196: 53800 | M196: 53800
B197: 2021-10-15 | C197: 226 | D197: 10076 | E197: 87260 | F197: 27700 | G197: 59560 | M197: 59560
B198: =B197 -> 2021-10-15 | C198: 225 | D198: 10077 | E198: 93760 | F198: 28280 | G198: 65480 | M198: 65480
B199: 2021-10-15 | C199: 001 | D199: 10078 | E199: 86300 | F199: 29380 | G199: 56920 | M199: 56920
B200: =B199 -> 2021-10-15 | C200: LACA5 | D200: 4253 | E200: 96880 | F200: 34820 | G200: =E200-F200 -> 62060 | I200: 62060
B201: 2021-10-15 | C201: 16 | D201: =1+D200 -> 4254 | E201: 95540 | F201: 34780 | G201: 60760 | I201: 60760
B202: 2021-10-15 | C202: 10 | D202: =1+D201 -> 4255 | E202: 98600 | F202: 34320 | G202: 64280 | I202: 64280
B203: 2021-10-15 | D203: 4256 | G203: =E203-F203 -> 0 | I203: =G203 -> 0
... 3689 more rows

Sheet Grand Shipping Total
E2: Louisiana Sugar Cane Cooperative, Inc.
E5: Location Shipping
C7: LSR SM#1 | D7: LSR SM#2 | E7: LSR BB | F7: CSC Trucks SM#1 | G7: CSC Trucks SM#2 | H7: CSC Trucks BB | I7: CSC Barge SM#1 | J7: CSC Barge SM#2 | K7: CSC Barge BB | L7: CSC RailCars SM#1 | M7: CSC RailCars SM#2 | N7: CSC RailCars BB | O7: Others SM#1 | P7: Others SM#2 | Q7: Others BB
C8: =SUM('2021 SUGAR SHIPPING'!I7:I18126) -> 66174990 | D8: =SUM('2021 SUGAR SHIPPING'!K7:K18126) -> 44491540 | E8: =SUM('2021 SUGAR SHIPPING'!L7:L18126) -> 0 | F8: =SUM('2021 SUGAR SHIPPING'!M7:M18126) -> 27638920 | G8: =SUM('2021 SUGAR SHIPPING'!N7:N18126) -> 16413120 | H8: =SUM('2021 SUGAR SHIPPING'!O7:O18126) -> 0 | I8: =SUM('2021 SUGAR SHIPPING'!P7:P18126) -> 9244420 | J8: =SUM('2021 SUGAR SHIPPING'!Q7:Q18126) -> 15438780 | K8: =SUM('2021 SUGAR SHIPPING'!R7:R18126) -> 0 | L8: =SUM('2021 SUGAR SHIPPING'!S7:S3111) -> 0 | M8: =SUM('2021 SUGAR SHIPPING'!T7:T3111) -> 0 | N8: =SUM('2021 SUGAR SHIPPING'!U7:U3111) -> 0 | O8: =SUM('2021 SUGAR SHIPPING'!V7:V3111) -> 8692260 | P8: =SUM('2021 SUGAR SHIPPING'!W7:W3111) -> 10973940 | Q8: =SUM('2021 SUGAR SHIPPING'!AB7:AB18126) -> 0

Sheet Sheet1
A5: 1st | B5: GO TO Data
A7: 2nd | B7: select any one cell
A9: 3rd | B9: select subtotal
A11: 4th | B11: select ungrouped
A13: 5th | B13: select colmun
A15: 6th | B15: First unselect all ,then
B16: select from date on the spesfic year and dates to total amount you want print out
A18: 7th | B18: now you can see how the print out page
A20: 8th | B20: Go to the next page to print out Grand Total
A23: NB; | B23: To go back just click blank from molasses page
B24: which is ready to enter the next date molasse shipping.Repeat the same way.
B25: select all and unselect subtotal days and also select Blank.

Sheet Sheet2
A1: 107lasuca | B1: 11830 | C1: 98800 | D1: 26760 | E1: =C1-D1 -> 72040 | G1: =E1 -> 72040
A2: 113lasuca | B2: 11842 | C2: 98500 | D2: 27720 | E2: 70780 | G2: =E2 -> 70780
A3: 108Lasuca | B3: 11843 | C3: 98900 | D3: 26180 | E3: 72720 | G3: 72720
A4: 106Lasuca | B4: 11846 | C4: 97300 | D4: 25740 | E4: 71560 | G4: 71560
A5: 107lasuca | B5: 11856 | C5: 98340 | D5: 26220 | E5: 72120 | G5: 72120
A6: 75Lasuca | B6: 11848 | C6: 94800 | D6: 34380 | E6: 60420 | G6: 60420
A7: 105lasuca | B7: 11851 | C7: 98600 | D7: 28780 | E7: 69820 | I7: =E7 -> 69820
A8: 75Lasuca | B8: 11869 | C8: 98820 | D8: 33980 | E8: 64840 | I8: =E8 -> 64840
A9: 105lasuca | B9: 11870 | C9: 96280 | D9: 27780 | E9: 68500 | I9: 68500
A10: 107lasuca | B10: 11875 | C10: 96040 | D10: 26600 | E10: 69440 | I10: 69440
A11: 108Lasuca | B11: 11877 | C11: 97440 | D11: 26160 | E11: 71280 | I11: 71280
A12: 113lasuca | B12: 11878 | C12: 98900 | D12: 28160 | E12: 70740 | I12: 70740
A13: 106Lasuca | B13: 11881 | C13: 96440 | D13: 26400 | E13: 70040 | I13: 70040
A14: 75Lasuca | B14: 11885 | C14: 95000 | D14: 33640 | E14: 61360 | I14: 61360
A15: 106Lasuca | B15: 11863 | C15: 99280 | D15: 26020 | E15: 73260 | G15: =E15 -> 73260
A16: 108Lasuca | B16: 11862 | C16: 96780 | D16: 26920 | E16: 69860 | G16: =E16 -> 69860
A17: 113lasuca | B17: 11861 | C17: 96400 | D17: 27160 | E17: 69240 | G17: 69240
A18: 27EP | B18: 11834 | C18: 103500 | D18: 33440 | E18: 70060 | I18: =E18 -> 70060
A19: 68EP | B19: 11835 | C19: 91100 | D19: 29420 | E19: 61680 | I19: =E19 -> 61680
A20: 203EP | B20: 11840 | C20: 94960 | D20: 33100 | E20: 61860 | I20: 61860
A21: 357EP | B21: 11845 | C21: 84740 | D21: 33680 | E21: 51060 | I21: 51060
A22: 01EP | B22: 11855 | C22: 100900 | D22: 34040 | E22: 66860 | I22: 66860
A23: 27EP | B23: 11847 | C23: 102000 | D23: 33180 | E23: 68820 | I23: 68820
A24: 203EP | B24: 11884 | C24: 96260 | D24: 33600 | E24: 62660 | I24: 62660
A25: 357EP | B25: 11860 | C25: 85160 | D25: 34800 | E25: 50360 | I25: 50360
A26: 27EP | B26: 11886 | C26: 99700 | D26: 32840 | E26: 66860 | I26: 66860
A27: 3-G5 TRKN | B27: 11836 | C27: 96700 | D27: 31060 | E27: 65640 | I27: 65640
A28: 3-G5 TRKN | B28: 11850 | C28: 95100 | D28: 30960 | E28: 64140 | I28: 64140
A29: 105pacer | B29: 11833 | C29: 100500 | D29: 36300 | E29: 64200 | I29: 64200
A30: 105pacer | B30: 5172 | C30: 99620 | D30: 36340 | E30: 63280 | I30: 63280
A31: 107pacer | B31: 11880 | C31: 98580 | D31: 34660 | E31: 63920 | I31: 63920
A32: 1keithboone | B32: 11844 | C32: 85800 | D32: 30200 | E32: 55600 | I32: 55600
A33: 1keithboone | B33: 11852 | C33: 87060 | D33: 29960 | E33: 57100 | I33: 57100
A34: 1keithboone | B34: 11865 | C34: 87880 | D34: 29320 | E34: 58560 | I34: 58560
A35: M-05 FORTIE | B35: 11839 | C35: 103960 | D35: 35100 | E35: 68860 | I35: 68860
A36: M-05 FORTIE | B36: 11882 | C36: 104260 | D36: 35020 | E36: 69240 | I36: 69240
A37: 37JBRADLEY | B37: 11829 | C37: 113000 | D37: 30340 | E37: 82660 | I37: 82660
A38: 37JBRADLEY | B38: 11857 | C38: 111080 | D38: 29960 | E38: 81120 | I38: 81120
A39: 37JBRADLEY | B39: 11873 | C39: 103980 | D39: 31340 | E39: 72640 | I39: 72640
A40: 01southprestige | B40: 11831 | C40: 111900 | D40: 29500 | E40: 82400 | I40: 82400
A41: 15AtchSfd | B41: 11858 | C41: 94480 | D41: 26640 | E41: 67840 | I41: 67840
A42: 104AtchSfd | B42: 11871 | C42: 92620 | D42: 29740 | E42: 62880 | I42: 62880
A43: 15AtchSfd | B43: 11872 | C43: 90260 | D43: 26780 | E43: 63480 | I43: 63480
A44: 104AtchSfd | B44: 11883 | C44: 94200 | D44: 30220 | E44: 63980 | I44: 63980
A45: 106I&M trkn | B45: 11879 | C45: 100300 | D45: 32980 | E45: 67320 | I45: 67320
E47: =SUM(E1:E45) -> 3013100 | G47: =SUM(G1:G45) -> 632000 | I47: =SUM(I1:I45) -> 2381100

Sheet Sheet4
A1: lasuca91 hopper to breaux bridge | B1: 2021-12-21 | C1: 1286 | D1: 67260 | E1: 34360 | F1: 32900 | I1: 32900
A2: lasuca91 hopper to breaux bridge | B2: 2021-12-21 | C2: 1287 | D2: 66840 | E2: 34340 | F2: 32500 | I2: 32500
A3: lasuca91 hopper to breaux bridge | B3: 2021-12-21 | C3: 1288 | D3: 68020 | E3: 35040 | F3: 32980 | I3: 32980
A4: lasuca91 hopper to breaux bridge | B4: 2021-12-21 | C4: 1289 | D4: 68880 | E4: 34940 | F4: 33940 | I4: 33940
A5: lasuca91 hopper to breaux bridge | B5: 2021-12-21 | C5: 1290 | D5: 68760 | E5: 35000 | F5: 33760 | I5: 33760
A6: lasuca91 hopper to breaux bridge | B6: 2021-12-21 | C6: 1291 | D6: 67740 | E6: 35000 | F6: 32740 | I6: 32740
A7: lasuca91 hopper to breaux bridge | B7: 2021-12-21 | C7: 1292 | D7: 66520 | E7: 35000 | F7: 31520 | I7: 31520
A8: lasuca91 hopper to breaux bridge | B8: 2021-12-21 | C8: 1293 | D8: 65640 | E8: 35040 | F8: 30600 | I8: 30600
A9: lasuca91 hopper to breaux bridge | B9: 2021-12-21 | C9: 1294 | D9: 67020 | E9: 35060 | F9: 31960 | I9: 31960
A10: lasuca91 hopper to breaux bridge | B10: 2021-12-21 | C10: 1295 | D10: 66880 | E10: 34900 | F10: 31980 | I10: 31980
A11: lasuca2 hopper to breaux bridge | B11: 2021-12-21 | C11: 68966 | D11: 74620 | E11: 27400 | F11: 47220 | I11: 47220
A12: lasuca2 hopper to breaux bridge | B12: 2021-12-21 | C12: 68974 | D12: 73740 | E12: 27440 | F12: 46300 | I12: 46300
A13: lasuca2 hopper to breaux bridge | B13: 2021-12-21 | C13: 68979 | D13: 74240 | E13: 27420 | F13: 46820 | I13: 46820
A14: lasuca2 hopper to breaux bridge | B14: 2021-12-21 | C14: 68982 | D14: 74840 | E14: 27560 | F14: 47280 | I14: 47280
A15: lasuca2 hopper to breaux bridge | B15: 2021-12-21 | C15: 68987 | D15: 76380 | E15: 27480 | F15: 48900 | I15: 48900
A16: lasuca2 hopper to breaux bridge | B16: 2021-12-21 | C16: 68993 | D16: 72720 | E16: 27460 | F16: 45260 | I16: 45260
A17: lasuca3 hopper to warehouse #1 | B17: 2021-12-21 | C17: 68967 | D17: 68900 | E17: 31960 | F17: 36940 | G17: 36940
A18: lasuca3 hopper to warehouse #1 | B18: 2021-12-21 | C18: 68969 | D18: 69400 | E18: 31920 | F18: 37480 | G18: 37480
A19: lasuca3 hopper to warehouse #1 | B19: 2021-12-21 | C19: 68970 | D19: 69700 | E19: 31700 | F19: 38000 | G19: 38000
A20: lasuca3 hopper to warehouse #1 | B20: 2021-12-21 | C20: 68971 | D20: 68520 | E20: 31820 | F20: 36700 | G20: 36700
A21: lasuca3 hopper to warehouse #1 | B21: 2021-12-21 | C21: 68973 | D21: 68780 | E21: 31880 | F21: 36900 | G21: 36900
A22: lasuca3 hopper to warehouse #1 | B22: 2021-12-21 | C22: 68975 | D22: 68040 | E22: 31780 | F22: 36260 | G22: 36260
A23: lasuca3 hopper to warehouse #1 | B23: 2021-12-21 | C23: 68977 | D23: 65920 | E23: 31880 | F23: 34040 | G23: 34040
A24: lasuca3 hopper to warehouse #1 | B24: 2021-12-21 | C24: 68978 | D24: 65960 | E24: 31820 | F24: 34140 | G24: 34140
A25: lasuca3 hopper to warehouse #1 | B25: 2021-12-21 | C25: 68983 | D25: 68560 | E25: 31900 | F25: 36660 | G25: 36660
A26: lasuca3 hopper to warehouse #1 | B26: 2021-12-21 | C26: 68985 | D26: 68680 | E26: 31820 | F26: 36860 | G26: 36860
A27: lasuca3 hopper to warehouse #1 | B27: 2021-12-21 | C27: 68986 | D27: 69160 | E27: 31880 | F27: 37280 | G27: 37280
A28: lasuca3 hopper to warehouse #1 | B28: 2021-12-21 | C28: 68988 | D28: 67800 | E28: 31880 | F28: 35920 | G28: 35920
A29: lasuca3 hopper to warehouse #1 | B29: 2021-12-21 | C29: 68989 | D29: 68340 | E29: 31940 | F29: 36400 | G29: 36400
A30: lasuca3 hopper to warehouse #1 | B30: 2021-12-21 | C30: 68990 | D30: 68080 | E30: 31960 | F30: 36120 | G30: 36120
A31: lasuca3 hopper to warehouse #1 | B31: 2021-12-21 | C31: 68992 | D31: 68060 | E31: 32000 | F31: 36060 | G31: 36060
A32: lasuca3 hopper to warehouse #1 | B32: 2021-12-21 | C32: 68994 | D32: 68080 | E32: 31980 | F32: 36100 | G32: 36100
A33: lasuca3 hopper to warehouse #1 | B33: 2021-12-21 | C33: 68996 | D33: 68420 | E33: 32020 | F33: 36400 | G33: 36400
A34: lasuca3 hopper to warehouse #1 | B34: 2021-12-21 | C34: 68997 | D34: 68520 | E34: 31980 | F34: 36540 | G34: 36540
A35: lasuca3 hopper to warehouse #1 | B35: 2021-12-21 | C35: 68999 | D35: 68000 | E35: 31880 | F35: 36120 | G35: 36120
A36: lasuca3 hopper to warehouse #1 | B36: 2021-12-21 | C36: 69000 | D36: 68020 | E36: 32060 | F36: 35960 | G36: 35960
A37: lasuca3 hopper to warehouse #1 | B37: 2021-12-21 | C37: 69003 | D37: 69900 | E37: 32040 | F37: 37860 | G37: 37860
A38: lasuca3 hopper to warehouse #1 | B38: 2021-12-21 | C38: 69004 | D38: 68500 | E38: 32020 | F38: 36480 | G38: 36480
A39: lasuca3 hopper to warehouse #1 | B39: 2021-12-21 | C39: 69006 | D39: 68680 | E39: 32040 | F39: 36640 | G39: 36640
A40: lasuca3 hopper to warehouse #1 | B40: 2021-12-21 | C40: 69007 | D40: 70520 | E40: 32120 | F40: 38400 | G40: 38400
A41: lasuca3 hopper to warehouse #1 | B41: 2021-12-21 | C41: 69008 | D41: 68720 | E41: 32080 | F41: 36640 | G41: 36640
A42: lasuca3 hopper to warehouse #1 | B42: 2021-12-21 | C42: 69009 | D42: 69880 | E42: 31980 | F42: 37900 | G42: 37900
A43: lasuca3 hopper to warehouse #1 | B43: 2021-12-21 | C43: 69010 | D43: 70400 | E43: 32120 | F43: 38280 | G43: 38280
A44: lasuca3 hopper to warehouse #1 | B44: 2021-12-21 | C44: 69011 | D44: 69840 | E44: 32320 | F44: 37520 | G44: 37520
A45: lasuca3 hopper to warehouse #1 | B45: 2021-12-21 | C45: 69012 | D45: 70120 | E45: 32360 | F45: 37760 | G45: 37760
A46: lasuca3 hopper to warehouse #1 | B46: 2021-12-21 | C46: 69014 | D46: 70640 | E46: 32220 | F46: 38420 | G46: 38420
A47: lasuca3 hopper to warehouse #1 | B47: 2021-12-21 | C47: 69015 | D47: 70140 | E47: 32400 | F47: 37740 | G47: 37740
A48: lasuca3 hopper to warehouse #1 | B48: 2021-12-21 | C48: 69016 | D48: 69320 | E48: 32300 | F48: 37020 | G48: 37020
A49: lasuca3 hopper to warehouse #1 | B49: 2021-12-21 | C49: 69017 | D49: 68840 | E49: 32020 | F49: 36820 | G49: 36820
A50: lasuca3 hopper to warehouse #1 | B50: 2021-12-21 | C50: 69018 | D50: 69500 | E50: 32340 | F50: 37160 | G50: 37160
A51: lasuca3 hopper to warehouse #1 | B51: 2021-12-21 | C51: 69019 | D51: 69940 | E51: 32080 | F51: 37860 | G51: 37860
A52: lasuca3 hopper to warehouse #1 | B52: 2021-12-21 | C52: 69020 | D52: 70300 | E52: 32340 | F52: 37960 | G52: 37960
A53: lasuca3 hopper to warehouse #1 | B53: 2021-12-21 | C53: 69021 | D53: 68680 | E53: 32080 | F53: 36600 | G53: 36600
A54: lasuca3 hopper to warehouse #1 | B54: 2021-12-21 | C54: 69022 | D54: 68160 | E54: 31980 | F54: 36180 | G54: 36180
A55: lasuca3 hopper to warehouse #1 | B55: 2021-12-21 | C55: 69023 | D55: 70260 | E55: 32420 | F55: 37840 | G55: 37840
A56: lasuca3 hopper to warehouse #1 | B56: 2021-12-21 | C56: 69024 | D56: 70340 | E56: 32140 | F56: 38200 | G56: 38200
A57: lasuca3 hopper to warehouse #1 | B57: 2021-12-21 | C57: 69025 | D57: 64780 | E57: 31660 | F57: 33120 | G57: 33120
A58: lasuca3 hopper to warehouse #1 | B58: 2021-12-21 | C58: 69026 | D58: 67920 | E58: 32020 | F58: 35900 | G58: 35900
A59: lasuca3 hopper to warehouse #1 | B59: 2021-12-21 | C59: 69027 | D59: 69720 | E59: 32000 | F59: 37720 | G59: 37720
A60: lasuca3 hopper to warehouse #1 | B60: 2021-12-21 | C60: 69028 | D60: 67900 | E60: 32040 | F60: 35860 | G60: 35860
A61: lasuca2 hopper to warehouse #1 | B61: 2021-12-21 | C61: 69030 | D61: 74860 | E61: 27300 | F61: 47560 | G61: 47560
A62: lasuca2 hopper to warehouse #1 | B62: 2021-12-21 | C62: 69031 | F62: 0 | G62: 0
A63: lasuca2 hopper to warehouse #1 | B63: 2021-12-21 | C63: 69032 | D63: 73080 | E63: 27360 | F63: 45720 | G63: 45720
A64: lasuca2 hopper to warehouse #1 | B64: 2021-12-21 | C64: 69033 | D64: 74100 | E64: 27380 | F64: 46720 | G64: 46720
A65: lasuca2 hopper to warehouse #1 | B65: 2021-12-21 | C65: 69034 | D65: 75400 | E65: 27340 | F65: 48060 | G65: 48060
A66: lasuca2 hopper to warehouse #1 | B66: 2021-12-21 | C66: 69035 | D66: 73580 | E66: 27340 | F66: 46240 | G66: 46240
A67: lasuca2 hopper to warehouse #1 | B67: 2021-12-21 | C67: 69036 | D67: 76360 | E67: 27380 | F67: 48980 | G67: 48980
A68: lasuca2 hopper to warehouse #1 | B68: 2021-12-21 | C68: 69037 | D68: 74740 | E68: 27380 | F68: 47360 | G68: 47360
A69: lasuca2 hopper to warehouse #1 | B69: 2021-12-21 | C69: 69038 | D69: 74800 | E69: 27380 | F69: 47420 | G69: 47420
A70: lasuca2 hopper to warehouse #1 | B70: 2021-12-21 | C70: 69039 | D70: 73900 | E70: 27300 | F70: 46600 | G70: 46600
A71: lasuca2 hopper to warehouse #1 | B71: 2021-12-21 | C71: 69040 | D71: 73120 | E71: 27340 | F71: 45780 | G71: 45780
A72: lasuca2 hopper to warehouse #1 | B72: 2021-12-21 | C72: 69042 | D72: 73340 | E72: 27380 | F72: 45960 | G72: 45960
A73: lasuca2 hopper to warehouse #1 | B73: 2021-12-21 | C73: 69043 | D73: 71960 | E73: 27360 | F73: 44600 | G73: 44600
A74: lasuca2 hopper to warehouse #1 | B74: 2021-12-21 | C74: 69044 | D74: 73980 | E74: 27300 | F74: 46680 | G74: 46680
A75: lasuca2 hopper to warehouse #1 | B75: 2021-12-21 | C75: 69045 | D75: 72600 | E75: 27300 | F75: 45300 | G75: 45300
A76: lasuca2 hopper to warehouse #1 | B76: 2021-12-21 | C76: 69046 | D76: 75520 | E76: 27320 | F76: 48200 | G76: 48200
A77: lasuca2 hopper to warehouse #1 | B77: 2021-12-21 | C77: 69048 | D77: 74800 | E77: 27320 | F77: 47480 | G77: 47480
A78: lasuca2 hopper to warehouse #1 | B78: 2021-12-21 | C78: 69049 | D78: 72240 | E78: 27260 | F78: 44980 | G78: 44980
A79: lasuca2 hopper to warehouse #1 | B79: 2021-12-21 | C79: 69050 | D79: 73500 | E79: 27320 | F79: 46180 | G79: 46180
A80: lasuca2 hopper to warehouse #1 | B80: 2021-12-21 | C80: 69051 | D80: 73980 | E80: 27280 | F80: 46700 | G80: 46700
A81: lasuca2 hopper to warehouse #1 | B81: 2021-12-21 | C81: 69052 | D81: 74860 | E81: 27280 | F81: 47580 | G81: 47580
A82: lasuca2 hopper to warehouse #1 | B82: 2021-12-21 | C82: 69053 | D82: 69220 | E82: 27280 | F82: 41940 | G82: 41940
A83: lasuca2 hopper to warehouse #1 | B83: 2021-12-21 | C83: 69055 | D83: 75000 | E83: 27500 | F83: 47500 | G83: 47500
A84: lasuca91 hopper to warehouse1 | B84: 2021-12-21 | C84: 1296 | D84: 70180 | E84: 34900 | F84: 35280 | G84: 35280
A85: lasuca91 hopper to warehouse1 | B85: 2021-12-21 | C85: 1297 | D85: 70440 | E85: 35220 | F85: 35220 | G85: 35220
A86: lasuca91 hopper to warehouse1 | B86: 2021-12-21 | C86: 1298 | D86: 69660 | E86: 35200 | F86: 34460 | G86: 34460
A87: lasuca91 hopper to warehouse1 | B87: 2021-12-21 | C87: 1299 | D87: 70040 | E87: 35220 | F87: 34820 | G87: 34820
A88: lasuca91 hopper to warehouse1 | B88: 2021-12-21 | C88: 1300 | D88: 71000 | E88: 34980 | F88: 36020 | G88: 36020
A89: lasuca91 hopper to warehouse1 | B89: 2021-12-21 | C89: 1301 | D89: 71240 | E89: 35200 | F89: 36040 | G89: 36040
A90: lasuca91 hopper to warehouse1 | B90: 2021-12-21 | C90: 1302 | D90: 69480 | E90: 34980 | F90: 34500 | G90: 34500
A91: lasuca91 hopper to warehouse1 | B91: 2021-12-21 | C91: 1303 | D91: 70500 | E91: 35000 | F91: 35500 | G91: 35500
A92: lasuca91 hopper to warehouse1 | B92: 2021-12-21 | C92: 1304 | D92: 70880 | E92: 35100 | F92: 35780 | G92: 35780
A93: lasuca91 hopper to warehouse1 | B93: 2021-12-21 | C93: 1305 | D93: 71420 | E93: 35160 | F93: 36260 | G93: 36260
A94: lasuca91 hopper to warehouse1 | B94: 2021-12-21 | C94: 1306 | D94: 68720 | E94: 35040 | F94: 33680 | G94: 33680
A95: lasuca91 hopper to warehouse1 | B95: 2021-12-21 | C95: 1307 | D95: 70300 | E95: 35040 | F95: 0 | G95: 0
A96: lasuca91 hopper to warehouse1 | B96: 2021-12-21 | C96: 29187 | D96: 70160 | E96: 34900 | F96: 35260 | G96: 35260
A97: lasuca91 hopper to warehouse1 | B97: 2021-12-21 | C97: 29188 | D97: 68420 | E97: 34860 | F97: 33560 | G97: 33560
A98: lasuca91 hopper to warehouse1 | B98: 2021-12-21 | C98: 29189 | D98: 69580 | E98: 34820 | F98: 34760 | G98: 34760
A99: lasuca91 hopper to warehouse1 | B99: 2021-12-21 | C99: 29190 | D99: 71020 | E99: 34860 | F99: 36160 | G99: 36160
A100: lasuca91 hopper to warehouse1 | B100: 2021-12-21 | C100: 29191 | D100: 69760 | E100: 34940 | F100: 34820 | G100: 34820
A101: lasuca91 hopper to warehouse1 | B101: 2021-12-21 | C101: 29192 | D101: 69960 | E101: 34900 | F101: 35060 | G101: 35060
A102: lasuca91 hopper to warehouse1 | B102: 2021-12-21 | C102: 29193 | D102: 68200 | E102: 34920 | F102: 33280 | G102: 33280
A103: lasuca91 hopper to warehouse1 | B103: 2021-12-21 | C103: 29194 | D103: 70900 | E103: 34900 | F103: 36000 | G103: 36000
A104: lasuca91 hopper to warehouse1 | B104: 2021-12-21 | C104: 29195 | D104: 69380 | E104: 34840 | F104: 34540 | G104: 34540
A105: lasuca91 hopper to warehouse1 | B105: 2021-12-21 | C105: 29196 | D105: 70380 | E105: 34840 | F105: 35540 | G105: 35540
A106: lasuca91 hopper to warehouse1 | B106: 2021-12-21 | C106: 29197 | D106: 67120 | E106: 34840 | F106: 32280 | G106: 32280
A107: lasuca91 hopper to warehouse1 | B107: 2021-12-21 | C107: 29198 | D107: 70000 | E107: 34920 | F107: 35080 | G107: 35080
A108: lasuca91 hopper to warehouse1 | B108: 2021-12-21 | C108: 29199 | D108: 69480 | E108: 34900 | F108: 34580 | G108: 34580
A109: lasuca91 hopper to warehouse1 | B109: 2021-12-21 | C109: 29200 | D109: 69540 | E109: 34920 | F109: 34620 | G109: 34620
A110: lasuca91 hopper to warehouse1 | B110: 2021-12-21 | C110: 29201 | D110: 68380 | E110: 34920 | F110: 33460 | G110: 33460
A111: lasuca91 hopper to warehouse1 | B111: 2021-12-21 | C111: 29202 | D111: 69480 | E111: 34920 | F111: 34560 | G111: 34560
A112: lasuca91 hopper to warehouse1 | B112: 2021-12-21 | C112: 29203 | D112: 70280 | E112: 34860 | F112: 35420 | G112: 35420
A113: lasuca91 hopper to warehouse1 | B113: 2021-12-21 | C113: 29204 | D113: 68580 | E113: 34920 | F113: 33660 | G113: 33660
A114: lasuca91 hopper to warehouse1 | B114: 2021-12-21 | C114: 29205 | D114: 71980 | E114: 27320 | F114: 44660 | G114: 44660
B117: Grand Total | G117: 3697160 | H117: 0 | I117: 606660
G120: 3705140
G121: 7980

Sheet Sheet3
A1: WH2 Caldwell Thibodeaux | B1: 2021-12-22 | C1: 2010-TPT | D1: 10457 | E1: 97800 | F1: 34300 | G1: =E1-F1 -> 63500
A2: WH1 Caldwell Thibodeaux | B2: 2021-12-22 | C2: 2010-TPT | D2: 10464 | E2: 95900 | F2: 34200 | G2: 61700
A3: WH2 Caldwell Thibodeaux | B3: 2021-12-22 | C3: 105-Pacer Trucking | D3: 10455 | E3: 101600 | F3: 35920 | G3: 65680
A4: WH1 Caldwell Thibodeaux | B4: 2021-12-22 | C4: 1905-Pacer Trucking | D4: 10456 | E4: 94580 | F4: 31820 | G4: 62760
A5: WH2 Caldwell Thibodeaux | B5: 2021-12-22 | C5: 1905-Pacer Trucking | D5: 10469 | E5: 93740 | F5: 31560 | G5: 62180
A6: WH2 Caldwell Thibodeaux | B6: 2021-12-22 | C6: 1905-Pacer Trucking,dump | D6: 10516 | E6: 31420 | F6: 74980 | G6: -43560
A7: WH2 Caldwell Thibodeaux | B7: 2021-12-22 | C7: 1906-Pacer Trucking | D7: 10513 | E7: 101940 | F7: 33460 | G7: 68480
A8: WH2 Caldwell Thibodeaux | B8: 2021-12-22 | C8: 200-Pacer Trucking | D8: 10471 | E8: 93320 | F8: 34160 | G8: 59160
A9: WH2 Caldwell Thibodeaux | B9: 2021-12-22 | C9: 123-Pacer Trucking | D9: 10512 | E9: 98480 | F9: 34800 | G9: 63680
A10: WH2 Caldwell Thibodeaux | B10: 2021-12-22 | C10: 1905-Pacer Trucking | D10: 10517 | E10: 96000 | F10: 31420 | G10: 64580
A11: WH2 Caldwell Thibodeaux | B11: 2021-12-22 | C11: 1903-Pacer Trucking | D11: 10519 | E11: 98640 | F11: 35580 | G11: 63060
A12: WH2 Caldwell Thibodeaux | B12: 2021-12-22 | C12: EP2-EmickPrejean | D12: 10458 | E12: 95480 | F12: 33540 | G12: 61940
A13: WH2 Caldwell Thibodeaux | B13: 2021-12-22 | C13: EP2-EmickPrejean | D13: 10465 | E13: 98300 | F13: 33460 | G13: 64840
A14: WH2 Caldwell Thibodeaux | B14: 2021-12-22 | C14: 07-BigDawg Trucking | D14: 10461 | E14: 101900 | F14: 35700 | G14: 66200
A15: WH2 Caldwell Thibodeaux | B15: 2021-12-22 | C15: 07-BigDawg Trucking | D15: 10468 | E15: 92480 | F15: 35540 | G15: 56940
A16: WH2 Caldwell Thibodeaux | B16: 2021-12-22 | C16: 07-BigDawg Trucking | D16: 10514 | E16: 102640 | F16: 35240 | G16: 67400
A17: WH2 Caldwell Thibodeaux | B17: 2021-12-22 | C17: #5-LACA | D17: 5627 | E17: 96180 | F17: 34080 | G17: 62100
A18: WH2 Caldwell Thibodeaux | B18: 2021-12-22 | C18: #8-LACA | D18: 10549 | E18: 103380 | F18: 35500 | G18: 67880
A19: WH2 Caldwell Thibodeaux | B19: 2021-12-22 | C19: #16-LACA | D19: 5630 | E19: 99460 | F19: 35480 | G19: 63980
A20: WH1 Caldwell Thibodeaux | B20: 2021-12-22 | C20: 105-Pacer Trucking | D20: 10467 | E20: 106060 | F20: 35320 | G20: 70740
A21: WH1 Caldwell Thibodeaux | B21: 2021-12-22 | C21: 106-Iam Trucking | D21: 10470 | E21: 95360 | F21: 32440 | G21: 62920
A22: WH2 Caldwell Thibodeaux | B22: 2021-12-22 | C22: 1901-Pacer Trucking | D22: 10520 | E22: 98760 | F22: 33540 | G22: 65220
A23: WH2 Caldwell Thibodeaux | B23: 2021-12-22 | C23: A28-AOA | D23: 10521 | E23: 99300 | F23: 33420 | G23: 65880 | H23: =SUM(G1:G23) -> 1367260

Sheet Sheet5
A1: lasuca91 hopper to breaux bridge | B1: 2021-12-25 | C1: 1338 | D1: 70220 | E1: 35500 | F1: 34720 | I1: 34720
A2: lasuca91 hopper to breaux bridge | B2: 2021-12-25 | C2: 1339 | D2: 70060 | E2: 35580 | F2: 34480 | I2: 34480
A3: lasuca91 hopper to breaux bridge | B3: 2021-12-25 | C3: 1340 | D3: 70280 | E3: 35800 | F3: 34480 | I3: 34480
A4: lasuca91 hopper to breaux bridge | B4: 2021-12-25 | C4: 1341 | D4: 69520 | E4: 35660 | F4: 33860 | I4: 33860
A5: lasuca91 hopper to breaux bridge | B5: 2021-12-25 | C5: 1342 | D5: 70000 | E5: 35660 | F5: 34340 | I5: 34340
A6: lasuca91 hopper to breaux bridge | B6: 2021-12-25 | C6: 1343 | D6: 69560 | E6: 35860 | F6: 33700 | I6: 33700
A7: lasuca91 hopper to breaux bridge | B7: 2021-12-25 | C7: 1344 | D7: 70540 | E7: 36540 | F7: 34000 | I7: 34000
A8: lasuca91 hopper to breaux bridge | B8: 2021-12-25 | C8: 1345 | D8: 69040 | E8: 36260 | F8: 32780 | I8: 32780
A9: lasuca91 hopper to breaux bridge | B9: 2021-12-25 | C9: 1346 | D9: 68000 | E9: 36260 | F9: 31740 | I9: 31740
A10: lasuca2 hopper to warehouse #1 | B10: 2021-12-25 | C10: 69327 | D10: 74640 | E10: 27900 | F10: 46740 | G10: 46740
A11: lasuca2 hopper to warehouse #1 | B11: 2021-12-25 | C11: 69328 | D11: 74420 | E11: 27920 | F11: 46500 | G11: 46500
A12: lasuca2 hopper to warehouse #1 | B12: 2021-12-25 | C12: 69329 | D12: 74920 | E12: 27900 | F12: 47020 | G12: 47020
A13: lasuca2 hopper to warehouse #1 | B13: 2021-12-25 | C13: 69330 | D13: 74700 | E13: 28020 | F13: 46680 | G13: 46680
A14: lasuca2 hopper to warehouse #1 | B14: 2021-12-25 | C14: 69331 | D14: 73280 | E14: 27980 | F14: 45300 | G14: 45300
A15: lasuca2 hopper to warehouse #1 | B15: 2021-12-25 | C15: 69332 | D15: 74380 | E15: 27940 | F15: 46440 | G15: 46440
A16: lasuca2 hopper to warehouse #1 | B16: 2021-12-25 | C16: 69333 | D16: 74460 | E16: 28080 | F16: 46380 | G16: 46380
A17: lasuca2 hopper to warehouse #1 | B17: 2021-12-25 | C17: 69334 | D17: 73900 | E17: 28040 | F17: 45860 | G17: 45860
A18: lasuca2 hopper to warehouse #1 | B18: 2021-12-25 | C18: 69335 | D18: 76020 | E18: 27860 | F18: 48160 | G18: 48160
A19: lasuca2 hopper to warehouse #1 | B19: 2021-12-25 | C19: 69336 | D19: 73720 | E19: 28000 | F19: 45720 | G19: 45720
A20: lasuca2 hopper to warehouse #1 | B20: 2021-12-25 | C20: 69337 | D20: 69680 | E20: 27960 | F20: 41720 | G20: 41720
A21: lasuca2 hopper to warehouse #1 | B21: 2021-12-25 | C21: 29209 | D21: 74120 | E21: 28020 | F21: 46100 | G21: 46100
A22: lasuca2 hopper to warehouse #1 | B22: 2021-12-25 | C22: 29210 | D22: 75740 | E22: 27900 | F22: 47840 | G22: 47840
A23: lasuca2 hopper to warehouse #1 | B23: 2021-12-25 | C23: 29211 | D23: 74180 | E23: 27980 | F23: 46200 | G23: 46200
A24: lasuca2 hopper to warehouse #1 | B24: 2021-12-25 | C24: 29212 | D24: 74480 | E24: 28220 | F24: 46260 | G24: 46260
A25: lasuca2 hopper to warehouse #1 | B25: 2021-12-25 | C25: 29213 | D25: 73100 | E25: 28120 | F25: 44980 | G25: 44980
A26: lasuca2 hopper to warehouse #1 | B26: 2021-12-25 | C26: 29214 | D26: 72460 | E26: 28280 | F26: 44180 | G26: 44180
A27: lasuca2 hopper to warehouse #1 | B27: 2021-12-25 | C27: 29215 | D27: 74720 | E27: 28100 | F27: 46620 | G27: 46620
A28: lasuca2 hopper to warehouse #1 | B28: 2021-12-25 | C28: 29216 | D28: 74720 | E28: 28300 | F28: 46420 | G28: 46420
A29: lasuca2 hopper to warehouse #1 | B29: 2021-12-25 | C29: 29217 | D29: 72240 | E29: 28360 | F29: 43880 | G29: 43880
A30: lasuca2 hopper to warehouse #1 | B30: 2021-12-25 | C30: 29218 | D30: 72380 | E30: 28500 | F30: 43880 | G30: 43880
A31: lasuca2 hopper to warehouse #1 | B31: 2021-12-25 | C31: 29219 | D31: 73260 | E31: 28280 | F31: 44980 | G31: 44980
A32: lasuca2 hopper to warehouse #1 | B32: 2021-12-25 | C32: 29220 | D32: 74820 | E32: 28360 | F32: 46460 | G32: 46460
A33: lasuca2 hopper to warehouse #1 | B33: 2021-12-25 | C33: 69338 | D33: 76740 | E33: 28520 | F33: 48220 | G33: 48220
A34: lasuca2 hopper to warehouse #1 | B34: 2021-12-25 | C34: 69339 | D34: 77540 | E34: 28920 | F34: 48620 | G34: 48620
A35: lasuca2 hopper to warehouse #1 | B35: 2021-12-25 | C35: 69340 | D35: 74140 | E35: 29300 | F35: 44840 | G35: 44840
A36: lasuca2 hopper to warehouse #1 | B36: 2021-12-25 | C36: 69341 | D36: 75440 | E36: 28880 | F36: 46560 | G36: 46560
A37: lasuca2 hopper to warehouse #1 | B37: 2021-12-25 | C37: 69342 | D37: 73900 | E37: 28380 | F37: 45520 | G37: 45520
A38: lasuca2 hopper to warehouse #1 | B38: 2021-12-25 | C38: 69343 | D38: 76160 | E38: 28640 | F38: 47520 | G38: 47520
A39: lasuca2 hopper to warehouse #1 | B39: 2021-12-25 | C39: 69344 | D39: 67060 | E39: 28940 | F39: 38120 | G39: 38120
A40: lasuca2 hopper to warehouse #1 | B40: 2021-12-25 | C40: 69345 | D40: 77920 | E40: 28280 | F40: 49640 | G40: 49640
A41: lasuca2 hopper to warehouse #1 | B41: 2021-12-25 | C41: 69346 | D41: 75600 | E41: 28820 | F41: 46780 | G41: 46780
A42: lasuca2 hopper to warehouse #1 | B42: 2021-12-25 | C42: 69347 | D42: 72820 | E42: 28720 | F42: 44100 | G42: 44100
A43: lasuca2 hopper to warehouse #1 | B43: 2021-12-25 | C43: 69348 | D43: 76160 | E43: 28700 | F43: 47460 | G43: 47460
A44: lasuca2 hopper to warehouse #1 | B44: 2021-12-25 | C44: 69349 | D44: 74040 | E44: 28940 | F44: 45100 | G44: 45100
A45: lasuca2 hopper to warehouse #1 | B45: 2021-12-25 | C45: 69350 | D45: 75200 | E45: 28640 | F45: 46560 | G45: 46560
A46: lasuca2 hopper to warehouse #1 | B46: 2021-12-25 | C46: 69351 | D46: 72300 | E46: 28280 | F46: 44020 | G46: 44020
A47: lasuca2 hopper to warehouse #1 | B47: 2021-12-25 | C47: 69352 | D47: 75000 | E47: 28580 | F47: 46420 | G47: 46420
A48: lasuca2 hopper to warehouse #1 | B48: 2021-12-25 | C48: 69353 | D48: 74820 | E48: 28460 | F48: 46360 | G48: 46360
A49: lasuca2 hopper to warehouse #1 | B49: 2021-12-25 | C49: 69354 | D49: 64820 | E49: 28060 | F49: 36760 | G49: 36760
A50: lasuca2 hopper to warehouse #1 | B50: 2021-12-25 | C50: 69355 | D50: 76260 | E50: 28180 | F50: 48080 | G50: 48080
A51: lasuca2 hopper to warehouse #1 | B51: 2021-12-25 | C51: 69356 | D51: 73780 | E51: 28160 | F51: 45620 | G51: 45620
A52: lasuca2 hopper to warehouse #1 | B52: 2021-12-25 | C52: 69357 | D52: 76040 | E52: 28320 | F52: 47720 | G52: 47720
A53: lasuca2 hopper to warehouse #1 | B53: 2021-12-25 | C53: 69358 | D53: 73800 | E53: 28420 | F53: 45380 | G53: 45380
A54: lasuca2 hopper to warehouse #1 | B54: 2021-12-25 | C54: 69359 | D54: 74880 | E54: 28420 | F54: 46460 | G54: 46460
A55: lasuca2 hopper to warehouse #1 | B55: 2021-12-25 | C55: 69360 | D55: 73120 | E55: 28400 | F55: 44720 | G55: 44720
A56: lasuca2 hopper to warehouse #1 | B56: 2021-12-25 | C56: 69361 | D56: 62440 | E56: 28420 | F56: 34020 | G56: 34020
A57: lasuca2 hopper to warehouse #1 | B57: 2021-12-25 | C57: 69362 | D57: 75220 | E57: 28080 | F57: 47140 | G57: 47140
A58: lasuca2 hopper to warehouse #1 | B58: 2021-12-25 | C58: 69363 | D58: 74220 | E58: 28140 | F58: 46080 | G58: 46080
A59: lasuca2 hopper to warehouse #1 | B59: 2021-12-25 | C59: 69364 | D59: 77280 | E59: 28160 | F59: 49120 | G59: 49120
A60: lasuca2 hopper to warehouse #1 | B60: 2021-12-25 | C60: 69365 | D60: 74420 | E60: 28140 | F60: 46280 | G60: 46280
A61: lasuca2 hopper to warehouse #1 | B61: 2021-12-25 | C61: 69366 | D61: 76380 | E61: 27980 | F61: 48400 | G61: 48400
A62: lasuca2 hopper to warehouse #1 | B62: 2021-12-25 | C62: 69367 | D62: 77200 | E62: 27960 | F62: 49240 | G62: 49240
A63: lasuca2 hopper to warehouse #1 | B63: 2021-12-25 | C63: 69368 | D63: 76760 | E63: 27980 | F63: 48780 | G63: 48780
A64: lasuca2 hopper to warehouse #1 | B64: 2021-12-25 | C64: 69369 | D64: 74460 | E64: 27940 | F64: 46520 | G64: 46520
A65: lasuca2 hopper to warehouse #1 | B65: 2021-12-25 | C65: 69370 | D65: 76180 | E65: 27900 | F65: 48280 | G65: 48280
A66: lasuca2 hopper to warehouse #1 | B66: 2021-12-25 | C66: 69371 | D66: 58800 | E66: 28020 | F66: 30780 | G66: 30780
A67: lasuca2 hopper to warehouse #1 | B67: 2021-12-25 | C67: 69372 | D67: 76820 | E67: 27900 | F67: 48920 | G67: 48920
A68: lasuca2 hopper to warehouse #1 | B68: 2021-12-25 | C68: 69373 | D68: 73460 | E68: 27920 | F68: 45540 | G68: 45540
A69: lasuca2 hopper to warehouse #1 | B69: 2021-12-25 | C69: 69374 | D69: 73200 | E69: 27760 | F69: 45440 | G69: 45440
A70: lasuca2 hopper to warehouse #1 | B70: 2021-12-25 | C70: 69375 | D70: 74480 | E70: 27760 | F70: 46720 | G70: 46720
A71: lasuca2 hopper to warehouse #1 | B71: 2021-12-25 | C71: 69376 | D71: 75280 | E71: 27880 | F71: 47400 | G71: 47400
A72: lasuca2 hopper to warehouse #1 | B72: 2021-12-25 | C72: 69377 | D72: 73720 | E72: 27880 | F72: 45840 | G72: 45840
A73: lasuca2 hopper to warehouse #1 | B73: 2021-12-25 | C73: 69378 | D73: 74480 | E73: 27740 | F73: 46740 | G73: 46740
A74: lasuca2 hopper to warehouse #1 | B74: 2021-12-25 | C74: 69379 | D74: 73640 | E74: 27940 | F74: 45700 | G74: 45700
A75: lasuca2 hopper to warehouse #1 | B75: 2021-12-25 | C75: 69380 | D75: 74280 | E75: 27900 | F75: 46380 | G75: 46380
A76: lasuca2 hopper to warehouse #1 | B76: 2021-12-25 | C76: 69381 | D76: 73920 | E76: 27880 | F76: 46040 | G76: 46040
A77: lasuca2 hopper to warehouse #1 | B77: 2021-12-25 | C77: 69382 | D77: 76940 | E77: 27780 | F77: 49160 | G77: 49160
A78: lasuca2 hopper to warehouse #1 | B78: 2021-12-25 | C78: 69383 | D78: 74580 | E78: 27840 | F78: 46740 | G78: 46740
A79: lasuca2 hopper to warehouse #1 | B79: 2021-12-25 | C79: 69384 | D79: 76220 | E79: 27760 | F79: 48460 | G79: 48460
A80: lasuca2 hopper to warehouse #1 | B80: 2021-12-25 | C80: 69385 | D80: 74560 | E80: 27740 | F80: 46820 | G80: 46820
A81: lasuca2 hopper to warehouse #1 | B81: 2021-12-25 | C81: 69386 | D81: 70820 | E81: 27860 | F81: 42960 | G81: 42960
A82: lasuca2 hopper to warehouse #1 | B82: 2021-12-25 | C82: 69387 | D82: 70880 | E82: 27940 | F82: 42940 | G82: 42940
A83: lasuca2 hopper to warehouse #1 | B83: 2021-12-25 | C83: 69388 | D83: 73000 | E83: 27700 | F83: 45300 | G83: 45300
B86: Grand Total | G86: 3386640 | H86: 0 | I86: 304100

Sheet Sheet6
A1: lasuca2 hopper to warehouse #2 | B1: 2021-12-31 | C1: 69897 | D1: 73300 | E1: 27480 | F1: 45820 | H1: 45820
A2: lasuca2 hopper to warehouse #2 | B2: 2021-12-31 | C2: 69898 | D2: 72900 | E2: 27500 | F2: 45400 | H2: 45400
A3: lasuca2 hopper to warehouse #2 | B3: 2021-12-31 | C3: 69899 | D3: 75100 | E3: 27500 | F3: 47600 | H3: 47600
A4: lasuca2 hopper to warehouse #2 | B4: 2021-12-31 | C4: 69900 | D4: 74000 | E4: 27540 | F4: 46460 | H4: 46460
A5: lasuca2 hopper to warehouse #2 | B5: 2021-12-31 | C5: 69901 | D5: 73960 | E5: 27540 | F5: 46420 | H5: 46420
A6: lasuca2 hopper to warehouse #2 | B6: 2021-12-31 | C6: 69902 | D6: 75380 | E6: 27480 | F6: 47900 | H6: 47900
A7: lasuca2 hopper to warehouse #2 | B7: 2021-12-31 | C7: 69903 | D7: 75120 | E7: 27500 | F7: 47620 | H7: 47620
A8: lasuca2 hopper to warehouse #2 | B8: 2021-12-31 | C8: 69906 | D8: 76220 | E8: 27520 | F8: 48700 | H8: 48700
A9: lasuca2 hopper to warehouse #2 | B9: 2021-12-31 | C9: 69907 | D9: 74560 | E9: 27500 | F9: 47060 | H9: 47060
A10: lasuca2 hopper to warehouse #2 | B10: 2021-12-31 | C10: 69908 | D10: 74220 | E10: 27520 | F10: 46700 | H10: 46700
A11: lasuca2 hopper to warehouse #2 | B11: 2021-12-31 | C11: 69909 | D11: 74340 | E11: 27500 | F11: 46840 | H11: 46840
A12: lasuca2 hopper to warehouse #2 | B12: 2021-12-31 | C12: 69910 | D12: 73040 | E12: 27520 | F12: 45520 | H12: 45520
A13: lasuca2 hopper to warehouse #2 | B13: 2021-12-31 | C13: 69912 | D13: 76540 | E13: 27480 | F13: 49060 | H13: 49060
A14: lasuca2 hopper to warehouse #2 | B14: 2021-12-31 | C14: 69913 | D14: 74120 | E14: 27500 | F14: 46620 | H14: 46620
A15: lasuca2 hopper to warehouse #2 | B15: 2021-12-31 | C15: 69914 | D15: 75160 | E15: 27500 | F15: 47660 | H15: 47660
A16: lasuca2 hopper to warehouse #2 | B16: 2021-12-31 | C16: 69915 | D16: 73500 | E16: 27480 | F16: 46020 | H16: 46020
A17: lasuca2 hopper to warehouse #2 | B17: 2021-12-31 | C17: 69917 | D17: 73720 | E17: 27500 | F17: 46220 | H17: 46220
A18: lasuca2 hopper to warehouse #2 | B18: 2021-12-31 | C18: 69918 | D18: 74000 | E18: 27540 | F18: 46460 | H18: 46460
A19: lasuca2 hopper to warehouse #2 | B19: 2021-12-31 | C19: 69919 | D19: 74320 | E19: 27540 | F19: 46780 | H19: 46780
A20: lasuca2 hopper to warehouse #2 | B20: 2021-12-31 | C20: 69921 | D20: 74060 | E20: 27560 | F20: 46500 | H20: 46500
A21: lasuca2 hopper to warehouse #2 | B21: 2021-12-31 | C21: 69922 | D21: 76240 | E21: 27560 | F21: 48680 | H21: 48680
A22: lasuca2 hopper to warehouse #2 | B22: 2021-12-31 | C22: 69923 | D22: 74840 | E22: 27520 | F22: 47320 | H22: 47320
A23: lasuca2 hopper to warehouse #2 | B23: 2021-12-31 | C23: 69924 | D23: 73500 | E23: 27460 | F23: 46040 | H23: 46040
A24: lasuca2 hopper to warehouse #2 | B24: 2021-12-31 | C24: 69925 | D24: 73660 | E24: 27340 | F24: 46320 | H24: 46320
A25: lasuca2 hopper to warehouse #2 | B25: 2021-12-31 | C25: 69926 | D25: 73120 | E25: 27520 | F25: 45600 | H25: 45600
A26: lasuca2 hopper to warehouse #2 | B26: 2021-12-31 | C26: 69927 | D26: 72860 | E26: 27600 | F26: 45260 | H26: 45260
A27: lasuca2 hopper to warehouse #2 | B27: 2021-12-31 | C27: 69929 | D27: 76820 | E27: 27740 | F27: 49080 | H27: 49080
A28: lasuca2 hopper to warehouse #2 | B28: 2021-12-31 | C28: 69930 | D28: 78160 | E28: 27660 | F28: 50500 | H28: 50500
A29: lasuca2 hopper to warehouse #2 | B29: 2021-12-31 | C29: 69931 | D29: 77420 | E29: 27600 | F29: 49820 | H29: 49820
A30: lasuca2 hopper to warehouse #2 | B30: 2021-12-31 | C30: 69932 | D30: 79020 | E30: 27580 | F30: 51440 | H30: 51440
A31: lasuca2 hopper to warehouse #2 | B31: 2021-12-31 | C31: 69933 | D31: 75540 | E31: 27480 | F31: 48060 | H31: 48060
A32: lasuca2 hopper to warehouse #2 | B32: 2021-12-31 | C32: 69934 | D32: 79560 | E32: 27480 | F32: 52080 | H32: 52080
A33: lasuca2 hopper to warehouse #2 | B33: 2021-12-31 | C33: 69935 | D33: 78280 | E33: 27500 | F33: 50780 | H33: 50780
A34: lasuca2 hopper to warehouse #2 | B34: 2021-12-31 | C34: 69936 | D34: 74700 | E34: 27580 | F34: 47120 | H34: 47120
A35: lasuca2 hopper to warehouse #2 | B35: 2021-12-31 | C35: 69937 | D35: 74180 | E35: 27620 | F35: 46560 | H35: 46560
A36: lasuca2 hopper to warehouse #2 | B36: 2021-12-31 | C36: 69938 | D36: 75120 | E36: 27440 | F36: 47680 | H36: 47680
A37: lasuca2 hopper to warehouse #2 | B37: 2021-12-31 | C37: 69939 | D37: 76760 | E37: 27600 | F37: 49160 | H37: 49160
A38: lasuca2 hopper to warehouse #2 | B38: 2021-12-31 | C38: 69940 | D38: 73220 | E38: 27340 | F38: 45880 | H38: 45880
A39: lasuca2 hopper to warehouse #2 | B39: 2021-12-31 | C39: 69941 | D39: 74480 | E39: 27380 | F39: 47100 | H39: 47100
A40: lasuca2 hopper to warehouse #2 | B40: 2021-12-31 | C40: 69942 | D40: 74120 | E40: 27400 | F40: 46720 | H40: 46720
A41: lasuca2 hopper to warehouse #2 | B41: 2021-12-31 | C41: 69943 | D41: 55780 | E41: 27580 | F41: 28200 | H41: 28200
A42: lasuca2 hopper to warehouse #2 | B42: 2021-12-31 | C42: 69944 | D42: 77760 | E42: 27600 | F42: 50160 | H42: 50160
A43: lasuca2 hopper to warehouse #2 | B43: 2021-12-31 | C43: 69945 | D43: 77020 | E43: 27500 | F43: 49520 | H43: 49520
A44: lasuca2 hopper to warehouse #2 | B44: 2021-12-31 | C44: 69946 | D44: 75180 | E44: 27540 | F44: 47640 | H44: 47640
A45: lasuca2 hopper to warehouse #2 | B45: 2021-12-31 | C45: 69947 | D45: 76300 | E45: 27480 | F45: 48820 | H45: 48820
A46: lasuca2 hopper to warehouse #2 | B46: 2021-12-31 | C46: 69948 | D46: 75340 | E46: 27500 | F46: 47840 | H46: 47840
A47: lasuca2 hopper to warehouse #2 | B47: 2021-12-31 | C47: 69949 | D47: 78080 | E47: 27500 | F47: 50580 | H47: 50580
A48: lasuca2 hopper to warehouse #2 | B48: 2021-12-31 | C48: 69950 | D48: 75220 | E48: 27580 | F48: 47640 | H48: 47640
A49: lasuca2 hopper to warehouse #2 | B49: 2021-12-31 | C49: 69951 | D49: 76060 | E49: 27540 | F49: 48520 | H49: 48520
A50: lasuca2 hopper to warehouse #2 | B50: 2021-12-31 | C50: 69952 | D50: 75900 | E50: 27560 | F50: 48340 | H50: 48340
A51: lasuca2 hopper to warehouse #2 | B51: 2021-12-31 | C51: 69953 | D51: 73660 | E51: 27560 | F51: 46100 | H51: 46100
A52: lasuca2 hopper to warehouse #2 | B52: 2021-12-31 | C52: 69954 | D52: 50260 | E52: 27540 | F52: 22720 | H52: 22720
A53: lasuca2 hopper to warehouse #2 | B53: 2021-12-31 | C53: 69955 | D53: 77700 | E53: 27500 | F53: 50200 | H53: 50200
A54: lasuca2 hopper to warehouse #2 | B54: 2021-12-31 | C54: 69956 | D54: 76480 | E54: 27500 | F54: 48980 | H54: 48980
A55: lasuca2 hopper to warehouse #2 | B55: 2021-12-31 | C55: 69957 | D55: 76120 | E55: 27520 | F55: 48600 | H55: 48600
A56: lasuca2 hopper to warehouse #2 | B56: 2021-12-31 | C56: 69958 | D56: 76220 | E56: 27560 | F56: 48660 | H56: 48660
A57: lasuca2 hopper to warehouse #2 | B57: 2021-12-31 | C57: 69959 | D57: 74120 | E57: 27540 | F57: 46580 | H57: 46580
A58: lasuca2 hopper to warehouse #2 | B58: 2021-12-31 | C58: 69960 | D58: 75120 | E58: 27540 | F58: 47580 | H58: 47580
A59: lasuca2 hopper to warehouse #2 | B59: 2021-12-31 | C59: 69961 | D59: 72320 | E59: 27560 | F59: 44760 | H59: 44760
A60: lasuca2 hopper to warehouse #2 | B60: 2021-12-31 | C60: 69962 | D60: 78320 | E60: 27560 | F60: 50760 | H60: 50760
A61: lasuca2 hopper to warehouse #2 | B61: 2021-12-31 | C61: 69963 | D61: 78680 | E61: 27500 | F61: 51180 | H61: 51180
A62: lasuca2 hopper to warehouse #2 | B62: 2021-12-31 | C62: 69964 | D62: 76780 | E62: 27540 | F62: 49240 | H62: 49240
A63: lasuca2 hopper to warehouse #2 | B63: 2021-12-31 | C63: 69965 | D63: 78260 | E63: 27560 | F63: 50700 | H63: 50700
A64: lasuca2 hopper to warehouse #2 | B64: 2021-12-31 | C64: 69966 | D64: 76920 | E64: 27540 | F64: 49380 | H64: 49380
A65: lasuca2 hopper to warehouse #2 | B65: 2021-12-31 | C65: 69967 | D65: 78260 | E65: 27480 | F65: 50780 | H65: 50780
A66: lasuca2 hopper to warehouse #2 | B66: 2021-12-31 | C66: 69968 | D66: 76200 | E66: 27540 | F66: 48660 | H66: 48660
A67: lasuca2 hopper to warehouse #2 | B67: 2021-12-31 | C67: 69969 | D67: 78380 | E67: 27540 | F67: 50840 | H67: 50840
A68: lasuca2 hopper to warehouse #2 | B68: 2021-12-31 | C68: 69970 | D68: 77700 | E68: 27520 | F68: 50180 | H68: 50180
A69: lasuca2 hopper to warehouse #2 | B69: 2021-12-31 | C69: 69971 | D69: 76460 | E69: 27520 | F69: 48940 | H69: 48940
A70: lasuca2 hopper to warehouse #2 | B70: 2021-12-31 | C70: 69972 | D70: 78100 | E70: 27600 | F70: 50500 | H70: 50500
A71: lasuca2 hopper to warehouse #2 | B71: 2021-12-31 | C71: 69973 | D71: 73020 | E71: 27500 | F71: 45520 | H71: 45520
A72: lasuca2 hopper to warehouse #2 | B72: 2021-12-31 | C72: 69974 | D72: 74560 | E72: 27520 | F72: 47040 | H72: 47040
A73: lasuca2 hopper to warehouse #2 | B73: 2021-12-31 | C73: 69975 | D73: 73600 | E73: 27540 | F73: 46060 | H73: 46060
A74: lasuca2 hopper to warehouse #2 | B74: 2021-12-31 | C74: 69976 | D74: 75000 | E74: 27500 | F74: 47500 | H74: 47500
A75: lasuca2 hopper to warehouse #2 | B75: 2021-12-31 | C75: 69977 | D75: 73880 | E75: 27520 | F75: 46360 | H75: 46360
A76: lasuca2 hopper to warehouse #2 | B76: 2021-12-31 | C76: 69978 | D76: 74100 | E76: 27540 | F76: 46560 | H76: 46560
A77: lasuca2 hopper to warehouse #2 | B77: 2021-12-31 | C77: 69979 | D77: 75460 | E77: 27600 | F77: 47860 | H77: 47860
A78: lasuca2 hopper to warehouse #2 | B78: 2021-12-31 | C78: 69980 | D78: 76500 | E78: 27520 | F78: 48980 | H78: 48980
A79: lasuca2 hopper to warehouse #2 | B79: 2021-12-31 | C79: 69981 | D79: 75280 | E79: 27560 | F79: 47720 | H79: 47720
A80: lasuca2 hopper to warehouse #2 | B80: 2021-12-31 | C80: 69982 | D80: 73820 | E80: 27560 | F80: 46260 | H80: 46260
A81: lasuca2 hopper to warehouse #2 | B81: 2021-12-31 | C81: 69983 | D81: 75160 | E81: 27540 | F81: 47620 | H81: 47620
A82: lasuca2 hopper to warehouse #2 | B82: 2021-12-31 | C82: 69984 | D82: 75580 | E82: 27500 | F82: 48080 | H82: 48080
A83: lasuca2 hopper to warehouse #2 | B83: 2021-12-31 | C83: 69985 | D83: 75400 | E83: 27520 | F83: 47880 | H83: 47880
A84: lasuca2 hopper to warehouse #2 | B84: 2021-12-31 | C84: 69986 | D84: 74620 | E84: 27600 | F84: 47020 | H84: 47020
A85: lasuca2 hopper to warehouse #2 | B85: 2021-12-31 | C85: 69987 | D85: 75340 | E85: 27480 | F85: 47860 | H85: 47860
A86: lasuca2 hopper to warehouse #2 | B86: 2021-12-31 | C86: 69988 | D86: 73640 | E86: 27500 | F86: 46140 | H86: 46140
A87: lasuca2 hopper to warehouse #2 | B87: 2021-12-31 | C87: 69989 | D87: 75180 | E87: 27560 | F87: 47620 | H87: 47620
B90: Grand Total | G90: 0 | H90: 4123240

Sheet Sheet7
A1: WH1 Caldwell Thibodeaux | B1: 2021-12-31 | C1: 24-WFB Trucking | D1: 10841 | E1: 105100 | F1: 35500 | G1: =E1-F1 -> 69600
A2: WH1 Caldwell Thibodeaux | B2: 2021-12-31 | C2: 24-WFB Trucking | D2: 10847 | E2: 102520 | F2: 33940 | G2: 68580
A3: WH1 Caldwell Thibodeaux | B3: 2021-12-31 | C3: DS03-AOA Service | D3: 10840 | E3: 101380 | F3: 32860 | G3: 68520
A4: WH1 Caldwell Thibodeaux | B4: 2021-12-31 | C4: A12-AOA | D4: 10842 | E4: 97700 | F4: 33300 | G4: 64400
A5: WH1 Caldwell Thibodeaux | B5: 2021-12-31 | C5: E28-AOA Service | D5: 10843 | E5: 99320 | F5: 34380 | G5: 64940
A6: WH1 Caldwell Thibodeaux | B6: 2021-12-31 | C6: A28-AOA Service | D6: 10844 | E6: 101940 | F6: 33860 | G6: 68080
A7: WH1 Caldwell Thibodeaux | B7: 2021-12-31 | C7: DS03-AOA Service | D7: 10846 | E7: 97760 | F7: 32460 | G7: 65300
A8: WH1 Caldwell Thibodeaux | B8: 2021-12-31 | C8: LS2-AOA Service | D8: 10848 | E8: 94540 | F8: 32720 | G8: 61820
A9: WH1 Caldwell Thibodeaux | B9: 2021-12-31 | C9: A12-AOA Service | D9: 10849 | E9: 95540 | F9: 30940 | G9: 64600
A10: WH1 Caldwell Thibodeaux | B10: 2021-12-31 | C10: E28-AOA Service | D10: 10850 | E10: 98800 | F10: 32480 | G10: 66320
A11: WH1 Caldwell Thibodeaux | B11: 2021-12-31 | C11: E28-AOA Service | D11: 10851 | E11: 98940 | F11: 33060 | G11: 65880 | I11: =SUM(G1:G11) -> 728040
A12: WH2 Caldwell Thibodeaux | B12: 2021-12-31 | C12: A30-AOA Service | D12: 10845 | E12: 97840 | F12: 34980 | G12: =E12-F12 -> 62860 | I12: =G12 -> 62860
G14: =SUM(G1:G12) -> 790900 | I14: =SUM(I1:I12) -> 790900

Sheet Sheet8
A1: lasuca2 hopper to warehouse #1 | B1: 2022-01-07 | C1: 70577 | D1: 78200 | E1: 27960 | F1: 50240 | G1: 50240
A2: lasuca2 hopper to warehouse #1 | B2: 2022-01-07 | C2: 70578 | D2: 76580 | E2: 27960 | F2: 48620 | G2: 48620
A3: lasuca2 hopper to warehouse #1 | B3: 2022-01-07 | C3: 70579 | D3: 79400 | E3: 28040 | F3: 51360 | G3: 51360
A4: lasuca2 hopper to warehouse #1 | B4: 2022-01-07 | C4: 70580 | D4: 76700 | E4: 27980 | F4: 48720 | G4: 48720
A5: lasuca2 hopper to warehouse #1 | B5: 2022-01-07 | C5: 70581 | D5: 77740 | E5: 27960 | F5: 49780 | G5: 49780
A6: lasuca2 hopper to warehouse #1 | B6: 2022-01-07 | C6: 70582 | D6: 76300 | E6: 27920 | F6: 48380 | G6: 48380
A7: lasuca2 hopper to warehouse #1 | B7: 2022-01-07 | C7: 70583 | D7: 76400 | E7: 27960 | F7: 48440 | G7: 48440
A8: lasuca2 hopper to warehouse #1 | B8: 2022-01-07 | C8: 70584 | D8: 77180 | E8: 27940 | F8: 49240 | G8: 49240
A9: lasuca2 hopper to warehouse #1 | B9: 2022-01-07 | C9: 70587 | D9: 77760 | E9: 28000 | F9: 49760 | G9: 49760
A10: lasuca2 hopper to warehouse #1 | B10: 2022-01-07 | C10: 70588 | D10: 75880 | E10: 27960 | F10: 47920 | G10: 47920
A11: lasuca2 hopper to warehouse #1 | B11: 2022-01-07 | C11: 70589 | D11: 76820 | E11: 27960 | F11: 48860 | G11: 48860
A12: lasuca2 hopper to warehouse #1 | B12: 2022-01-07 | C12: 70590 | D12: 76200 | E12: 27920 | F12: 48280 | G12: 48280
A13: lasuca2 hopper to warehouse #1 | B13: 2022-01-07 | C13: 70591 | D13: 77420 | E13: 27960 | F13: 49460 | G13: 49460
A14: lasuca2 hopper to warehouse #1 | B14: 2022-01-07 | C14: 70592 | D14: 76960 | E14: 27960 | F14: 49000 | G14: 49000
A15: lasuca2 hopper to warehouse #1 | B15: 2022-01-07 | C15: 70594 | D15: 74860 | E15: 27920 | F15: 46940 | G15: 46940
A16: lasuca2 hopper to warehouse #1 | B16: 2022-01-07 | C16: 70596 | D16: 69620 | E16: 35300 | F16: 34320 | G16: 34320
A17: lasuca2 hopper to warehouse #1 | B17: 2022-01-07 | C17: 70597 | D17: 70080 | E17: 35340 | F17: 34740 | G17: 34740
A18: lasuca2 hopper to warehouse #1 | B18: 2022-01-07 | C18: 70599 | D18: 69740 | E18: 35360 | F18: 34380 | G18: 34380
A19: lasuca2 hopper to warehouse #1 | B19: 2022-01-07 | C19: 70600 | D19: 69060 | E19: 35400 | F19: 33660 | G19: 33660
A20: lasuca2 hopper to warehouse #1 | B20: 2022-01-07 | C20: 70602 | D20: 69260 | E20: 35400 | F20: 33860 | G20: 33860
A21: lasuca2 hopper to warehouse #1 | B21: 2022-01-07 | C21: 70604 | D21: 70700 | E21: 35440 | F21: 35260 | G21: 35260
A22: lasuca2 hopper to warehouse #1 | B22: 2022-01-07 | C22: 70605 | D22: 69120 | E22: 35500 | F22: 33620 | G22: 33620
A23: lasuca2 hopper to warehouse #1 | B23: 2022-01-07 | C23: 70606 | D23: 69960 | E23: 35600 | F23: 34360 | G23: 34360
A24: lasuca2 hopper to warehouse #1 | B24: 2022-01-07 | C24: 70607 | D24: 69660 | E24: 35560 | F24: 34100 | G24: 34100
A25: lasuca2 hopper to warehouse #1 | B25: 2022-01-07 | C25: 70608 | D25: 71520 | E25: 35560 | F25: 35960 | G25: 35960
A26: lasuca2 hopper to warehouse #1 | B26: 2022-01-07 | C26: 70609 | D26: 70440 | E26: 35600 | F26: 34840 | G26: 34840
A27: lasuca2 hopper to warehouse #1 | B27: 2022-01-07 | C27: 70610 | D27: 70960 | E27: 35620 | F27: 35340 | G27: 35340
A28: lasuca2 hopper to warehouse #1 | B28: 2022-01-07 | C28: 70611 | D28: 69180 | E28: 35660 | F28: 33520 | G28: 33520
A29: lasuca2 hopper to warehouse #1 | B29: 2022-01-07 | C29: 70612 | D29: 66640 | E29: 35680 | F29: 30960 | G29: 30960
A30: lasuca2 hopper to warehouse #1 | B30: 2022-01-07 | C30: 70615 | D30: 68340 | E30: 35620 | F30: 32720 | G30: 32720
A31: lasuca2 hopper to warehouse #1 | B31: 2022-01-07 | C31: 70616 | D31: 69600 | E31: 35740 | F31: 33860 | G31: 33860
A32: lasuca2 hopper to warehouse #1 | B32: 2022-01-07 | C32: 70617 | D32: 71180 | E32: 35640 | F32: 35540 | G32: 35540
A33: lasuca2 hopper to warehouse #1 | B33: 2022-01-07 | C33: 70618 | D33: 69480 | E33: 35540 | F33: 33940 | G33: 33940
A34: lasuca2 hopper to warehouse #1 | B34: 2022-01-07 | C34: 70619 | D34: 70800 | E34: 35360 | F34: 35440 | G34: 35440
A35: lasuca2 hopper to warehouse #1 | B35: 2022-01-07 | C35: 70620 | D35: 69100 | E35: 35580 | F35: 33520 | G35: 33520
A36: lasuca2 hopper to warehouse #1 | B36: 2022-01-07 | C36: 70621 | D36: 70100 | E36: 35600 | F36: 34500 | G36: 34500
A37: lasuca2 hopper to warehouse #1 | B37: 2022-01-07 | C37: 70622 | D37: 68160 | E37: 35520 | F37: 32640 | G37: 32640
A38: lasuca2 hopper to warehouse #1 | B38: 2022-01-07 | C38: 70624 | D38: 69700 | E38: 35800 | F38: 33900 | G38: 33900
A39: lasuca2 hopper to warehouse #1 | B39: 2022-01-07 | C39: 70625 | D39: 67800 | E39: 35460 | F39: 32340 | G39: 32340
A40: lasuca2 hopper to warehouse #1 | B40: 2022-01-07 | C40: 70626 | D40: 64880 | E40: 35860 | F40: 29020 | G40: 29020
A41: lasuca2 hopper to warehouse #1 | B41: 2022-01-07 | C41: 70627 | D41: 67780 | E41: 35660 | F41: 32120 | G41: 32120
A42: lasuca2 hopper to warehouse #1 | B42: 2022-01-07 | C42: 70628 | D42: 64880 | E42: 35900 | F42: 28980 | G42: 28980
A43: lasuca2 hopper to warehouse #1 | B43: 2022-01-07 | C43: 70629 | D43: 69100 | E43: 35740 | F43: 33360 | G43: 33360
A44: lasuca2 hopper to warehouse #1 | B44: 2022-01-07 | C44: 70630 | D44: 71320 | E44: 35880 | F44: 35440 | G44: 35440
A45: lasuca2 hopper to warehouse #1 | B45: 2022-01-07 | C45: 70631 | D45: 69420 | E45: 36120 | F45: 33300 | G45: 33300
A46: lasuca2 hopper to warehouse #1 | B46: 2022-01-07 | C46: 70632 | D46: 68840 | E46: 35940 | F46: 32900 | G46: 32900
A47: lasuca2 hopper to warehouse #1 | B47: 2022-01-07 | C47: 70633 | D47: 70300 | E47: 36160 | F47: 34140 | G47: 34140
A48: lasuca2 hopper to warehouse #1 | B48: 2022-01-07 | C48: 70634 | D48: 69860 | E48: 36040 | F48: 33820 | G48: 33820
A49: lasuca2 hopper to warehouse #1 | B49: 2022-01-07 | C49: 70635 | D49: 70640 | E49: 36180 | F49: 34460 | G49: 34460
A50: lasuca2 hopper to warehouse #1 | B50: 2022-01-07 | C50: 70636 | D50: 71580 | E50: 35980 | F50: 35600 | G50: 35600
A51: lasuca2 hopper to warehouse #1 | B51: 2022-01-07 | C51: 70637 | D51: 69080 | E51: 35920 | F51: 33160 | G51: 33160
A52: lasuca2 hopper to warehouse #1 | B52: 2022-01-07 | C52: 70638 | D52: 71780 | E52: 35940 | F52: 35840 | G52: 35840
A53: lasuca2 hopper to warehouse #1 | B53: 2022-01-07 | C53: 70639 | D53: 69640 | E53: 36240 | F53: 33400 | G53: 33400
A54: lasuca2 hopper to warehouse #1 | B54: 2022-01-07 | C54: 70640 | D54: 69180 | E54: 36200 | F54: 32980 | G54: 32980
A55: lasuca2 hopper to warehouse #1 | B55: 2022-01-07 | C55: 70641 | D55: 69800 | E55: 36460 | F55: 33340 | G55: 33340
A56: lasuca2 hopper to warehouse #1 | B56: 2022-01-07 | C56: 70642 | D56: 69640 | E56: 36020 | F56: 33620 | G56: 33620
A57: lasuca2 hopper to warehouse #1 | B57: 2022-01-07 | C57: 70643 | D57: 69780 | E57: 36020 | F57: 33760 | G57: 33760
A58: lasuca2 hopper to warehouse #1 | B58: 2022-01-07 | C58: 70644 | D58: 70200 | E58: 35820 | F58: 34380 | G58: 34380
A59: lasuca2 hopper to warehouse #1 | B59: 2022-01-07 | C59: 70645 | D59: 68260 | E59: 35960 | F59: 32300 | G59: 32300
A60: lasuca2 hopper to warehouse #1 | B60: 2022-01-07 | C60: 70646 | D60: 70200 | E60: 35800 | F60: 34400 | G60: 34400
A61: lasuca2 hopper to warehouse #1 | B61: 2022-01-07 | C61: 70647 | D61: 68800 | E61: 36100 | F61: 32700 | G61: 32700
A62: lasuca2 hopper to warehouse #1 | B62: 2022-01-07 | C62: 70648 | D62: 67840 | E62: 36220 | F62: 31620 | G62: 31620
A63: lasuca2 hopper to warehouse #1 | B63: 2022-01-07 | C63: 70649 | D63: 69320 | E63: 36020 | F63: 33300 | G63: 33300
A64: lasuca2 hopper to warehouse #1 | B64: 2022-01-07 | C64: 70650 | D64: 68380 | E64: 36060 | F64: 32320 | G64: 32320
A65: lasuca2 hopper to warehouse #1 | B65: 2022-01-07 | C65: 70651 | D65: 69060 | E65: 28300 | F65: 40760 | G65: 40760
A66: lasuca2 hopper to warehouse #1 | B66: 2022-01-07 | C66: 70652 | D66: 75520 | E66: 28420 | F66: 47100 | G66: 47100
A67: lasuca2 hopper to warehouse #1 | B67: 2022-01-07 | C67: 70653 | D67: 76560 | E67: 28340 | F67: 48220 | G67: 48220
A68: lasuca2 hopper to warehouse #1 | B68: 2022-01-07 | C68: 70654 | D68: 75300 | E68: 28280 | F68: 47020 | G68: 47020
A69: lasuca2 hopper to warehouse #1 | B69: 2022-01-07 | C69: 70655 | D69: 77680 | E69: 28340 | F69: 49340 | G69: 49340
A70: lasuca2 hopper to warehouse #1 | B70: 2022-01-07 | C70: 70656 | D70: 76800 | E70: 28320 | F70: 48480 | G70: 48480
A71: lasuca2 hopper to warehouse #1 | B71: 2022-01-07 | C71: 70657 | D71: 78780 | E71: 28340 | F71: 50440 | G71: 50440
A72: lasuca2 hopper to warehouse #1 | B72: 2022-01-07 | C72: 70658 | D72: 76400 | E72: 28260 | F72: 48140 | G72: 48140
A73: lasuca2 hopper to warehouse #1 | B73: 2022-01-07 | C73: 70659 | D73: 79060 | E73: 28340 | F73: 50720 | G73: 50720
A74: lasuca2 hopper to warehouse #1 | B74: 2022-01-07 | C74: 70660 | D74: 75640 | E74: 28300 | F74: 47340 | G74: 47340
A75: lasuca2 hopper to warehouse #1 | B75: 2022-01-07 | C75: 70661 | D75: 80280 | E75: 28340 | F75: 51940 | G75: 51940
A76: lasuca2 hopper to warehouse #1 | B76: 2022-01-07 | C76: 70662 | D76: 76760 | E76: 28460 | F76: 48300 | G76: 48300
A77: lasuca2 hopper to warehouse #1 | B77: 2022-01-07 | C77: 70663 | D77: 78200 | E77: 28320 | F77: 49880 | G77: 49880
A78: lasuca2 hopper to warehouse #1 | B78: 2022-01-07 | C78: 70664 | D78: 70720 | E78: 28440 | F78: 42280 | G78: 42280
A79: lasuca2 hopper to warehouse #1 | B79: 2022-01-07 | C79: 70665 | D79: 77060 | E79: 28420 | F79: 48640 | G79: 48640
A80: lasuca2 hopper to warehouse #1 | B80: 2022-01-07 | C80: 70666 | D80: 75740 | E80: 28320 | F80: 47420 | G80: 47420
A81: lasuca2 hopper to warehouse #1 | B81: 2022-01-07 | C81: 70667 | D81: 77840 | E81: 28380 | F81: 49460 | G81: 49460
A82: lasuca2 hopper to warehouse #1 | B82: 2022-01-07 | C82: 70668 | D82: 77880 | E82: 28080 | F82: 49800 | G82: 49800
A83: lasuca2 hopper to warehouse #1 | B83: 2022-01-07 | C83: 70669 | D83: 77820 | E83: 28060 | F83: 49760 | G83: 49760
A84: lasuca2 hopper to warehouse #1 | B84: 2022-01-07 | C84: 70670 | D84: 79160 | E84: 28080 | F84: 51080 | G84: 51080
A85: lasuca2 hopper to warehouse #1 | B85: 2022-01-07 | C85: 70671 | D85: 76440 | E85: 28200 | F85: 48240 | G85: 48240
A86: lasuca2 hopper to warehouse #1 | B86: 2022-01-07 | C86: 70672 | D86: 76080 | E86: 28060 | F86: 48020 | G86: 48020
A87: lasuca2 hopper to warehouse #1 | B87: 2022-01-07 | C87: 70673 | D87: 77680 | E87: 28220 | F87: 49460 | G87: 49460
A88: lasuca2 hopper to warehouse #1 | B88: 2022-01-07 | C88: 70674 | D88: 76180 | E88: 28100 | F88: 48080 | G88: 48080
A89: lasuca2 hopper to warehouse #1 | B89: 2022-01-07 | C89: 70675 | D89: 77020 | E89: 28040 | F89: 48980 | G89: 48980
A90: lasuca2 hopper to warehouse #1 | B90: 2022-01-07 | C90: 70676 | D90: 78680 | E90: 28040 | F90: 50640 | G90: 50640
A91: lasuca2 hopper to warehouse #1 | B91: 2022-01-07 | C91: 70677 | D91: 76580 | E91: 28080 | F91: 48500 | G91: 48500
A92: lasuca2 hopper to warehouse #1 | B92: 2022-01-07 | C92: 70678 | D92: 76520 | E92: 28080 | F92: 48440 | G92: 48440
A93: lasuca2 hopper to warehouse #1 | B93: 2022-01-07 | C93: 29240 | D93: 77520 | E93: 27860 | F93: 49660 | G93: 49660
A94: lasuca2 hopper to warehouse #1 | B94: 2022-01-07 | C94: 29241 | D94: 78740 | E94: 28140 | F94: 50600 | G94: 50600
A95: lasuca2 hopper to warehouse #1 | B95: 2022-01-07 | C95: 29242 | D95: 79600 | E95: 27980 | F95: 51620 | G95: 51620
A96: lasuca2 hopper to warehouse #1 | B96: 2022-01-07 | C96: 29243 | D96: 77140 | E96: 27980 | F96: 49160 | G96: 49160
A97: lasuca2 hopper to warehouse #1 | B97: 2022-01-07 | C97: 29244 | D97: 77920 | E97: 27960 | F97: 49960 | G97: 49960
A98: lasuca2 hopper to warehouse #1 | B98: 2022-01-07 | C98: 29245 | D98: 75760 | E98: 28160 | F98: 47600 | G98: 47600
B101: Grand Total | G101: 4037660

Sheet Sheet9
I1: wh#1 | J1: WH#2
A2: WH2 To Caldwell Thibodaux | B2: 2022-01-07 | C2: 07-BigDawg Trucking | D2: 11081 | E2: 95560 | F2: 36380 | G2: =E2-F2 -> 59180 | J2: =G2 -> 59180
A3: WH1 To Caldwell Thibodaux | B3: 2022-01-07 | C3: 24-WFB Trucking | D3: 11063 | E3: 102700 | F3: 35400 | G3: 67300 | I3: =G3 -> 67300
A4: WH2 To Caldwell Thibodaux | B4: 2022-01-07 | C4: AG1-AOA Service | D4: 10060 | E4: 100500 | F4: 33260 | G4: 67240 | J4: =G4 -> 67240
A5: WH2 To Caldwell Thibodaux | B5: 2022-01-07 | C5: DS03-AOA Service | D5: 11064 | E5: 95980 | F5: 37920 | G5: 58060 | J5: =G5 -> 58060
A6: WH2 To Caldwell Thibodaux | B6: 2022-01-07 | C6: LS2-AOA Service | D6: 11069 | E6: 98100 | F6: 34880 | G6: 63220 | J6: 63220
A7: WH2 To Caldwell Thibodaux | B7: 2022-01-07 | C7: A12-AOA Service | D7: 11070 | E7: 98540 | F7: 32680 | G7: 65860 | J7: 65860
A8: WH2 To Caldwell Thibodaux | B8: 2022-01-07 | C8: E28-AOA Service | D8: 11073 | E8: 100100 | F8: 33460 | G8: 66640 | J8: 66640
A9: WH2 To Caldwell Thibodaux | B9: 2022-01-07 | C9: 1909-Pacer Trucking | D9: 11059 | E9: 95960 | F9: 33640 | G9: 62320 | J9: 62320
A10: WH2 To Caldwell Thibodaux | B10: 2022-01-07 | C10: 1904-Pacer Trucking | D10: 11062 | E10: 94060 | F10: 33180 | G10: 60880 | J10: 60880
A11: WH2 To Caldwell Thibodaux | B11: 2022-01-07 | C11: 1906-Pacer Trucking | D11: 11077 | E11: 94340 | F11: 33440 | G11: 60900 | J11: 60900
A12: WH2 To Caldwell Thibodaux | B12: 2022-01-07 | C12: 1908-Pacer Trucking | D12: 11078 | E12: 91380 | F12: 31440 | G12: 59940 | J12: 59940
A13: WH2 To Caldwell Thibodaux | B13: 2022-01-07 | C13: 1905-Pacer Trucking | D13: 11079 | E13: 96340 | F13: 37320 | G13: 59020 | J13: 59020
L14: Total Caldwell | N14: Todate
H15: Total | I15: =I3 -> 67300 | J15: =SUM(J2:J13) -> 683260 | L15: =J15+I15 -> 750560 | N15: 46924880
A17: WH2 TO CSC DALLAS,TX | B17: 2022-01-07 | C17: 227-Maluva-Load#220030 | D17: 11067 | E17: 82680 | F17: 29540 | G17: 53140 | J17: =G17 -> 53140
A18: WH2 TO CSC DALLAS,TX | B18: 2022-01-07 | C18: 305-Maluva-Load#220031 | D18: 11084 | E18: 79120 | F18: 27440 | G18: 51680 | J18: =G18 -> 51680
A19: WH2 TO CSC DALLAS,TX | B19: 2022-01-07 | C19: 275-Maluva-Load#220030 | D19: 11085 | E19: 79260 | F19: 29500 | G19: 49760 | J19: 49760
A20: WH2 TO CSC DALLAS,TX | B20: 2022-01-07 | C20: 444-Maluva-Load#220033 | D20: 11088 | E20: 79800 | F20: 29960 | G20: 49840 | J20: 49840
A21: WH2 TO CSC DALLAS,TX | B21: 2022-01-07 | C21: 226-Maluva-Load#220034 | D21: 11089 | E21: 86220 | F21: 28420 | G21: 57800 | J21: 57800
A22: WH2 TO CSC DALLAS,TX | B22: 2022-01-07 | C22: 229-Maluva-Load#220019 | D22: 11094 | E22: 79280 | F22: 29000 | G22: 50280 | J22: 50280
A23: WH2 TO CSC DALLAS,TX | B23: 2022-01-07 | C23: 227-Maluva-Load#220003 | D23: 11095 | E23: 81440 | F23: 28860 | G23: 52580 | J23: 52580
A24: WH2 TO CSC DALLAS,TX | B24: 2022-01-07 | C24: 24-Maluva-Load#220029 | D24: 11096 | E24: 81460 | F24: 28740 | G24: 52720 | J24: 52720
A25: WH2 TO CSC DALLAS,TX | B25: 2022-01-07 | C25: 03-Maluva-Load#220026 | D25: 11097 | E25: 82620 | F25: 24360 | G25: 58260 | J25: 58260
L26: Todate CSC
H27: Total | J27: =SUM(J17:J25) -> 476060 | L27: ='Grand Shipping Total'!F8+'Grand Shipping Total'!G8 -> 44052040

Sheet Sheet10
A1: lasuca2 hopper to warehouse #1 | B1: 2022-01-08 | C1: 29249 | D1: 77460 | E1: 28120 | F1: 49340 | G1: 49340
A2: lasuca2 hopper to warehouse #1 | B2: 2022-01-08 | C2: 29250 | D2: 76360 | E2: 28040 | F2: 48320 | G2: 48320
A3: lasuca2 hopper to warehouse #1 | B3: 2022-01-08 | C3: 29251 | D3: 79600 | E3: 28200 | F3: 51400 | G3: 51400
A4: lasuca2 hopper to warehouse #1 | B4: 2022-01-08 | C4: 29252 | D4: 77260 | E4: 28180 | F4: 49080 | G4: 49080
A5: lasuca2 hopper to warehouse #1 | B5: 2022-01-08 | C5: 29253 | D5: 77220 | E5: 28120 | F5: 49100 | G5: 49100
A6: lasuca2 hopper to warehouse #1 | B6: 2022-01-08 | C6: 29254 | D6: 71200 | E6: 27960 | F6: 43240 | G6: 43240
A7: lasuca2 hopper to warehouse #1 | B7: 2022-01-08 | C7: 29255 | D7: 79060 | E7: 28060 | F7: 51000 | G7: 51000
A8: lasuca2 hopper to warehouse #1 | B8: 2022-01-08 | C8: 29256 | D8: 76560 | E8: 28020 | F8: 48540 | G8: 48540
A9: lasuca2 hopper to warehouse #1 | B9: 2022-01-08 | C9: 29257 | D9: 76640 | E9: 28080 | F9: 48560 | G9: 48560
A10: lasuca2 hopper to warehouse #1 | B10: 2022-01-08 | C10: 29258 | D10: 76860 | E10: 28060 | F10: 48800 | G10: 48800
A11: lasuca2 hopper to warehouse #1 | B11: 2022-01-08 | C11: 29259 | D11: 77560 | E11: 28000 | F11: 49560 | G11: 49560
A12: lasuca2 hopper to warehouse #1 | B12: 2022-01-08 | C12: 29260 | D12: 76980 | E12: 28060 | F12: 48920 | G12: 48920
A13: lasuca2 hopper to warehouse #1 | B13: 2022-01-08 | C13: 29261 | D13: 75200 | E13: 28020 | F13: 47180 | G13: 47180
A14: lasuca2 hopper to warehouse #1 | B14: 2022-01-08 | C14: 29262 | D14: 73820 | E14: 28080 | F14: 45740 | G14: 45740
A15: lasuca2 hopper to warehouse #1 | B15: 2022-01-08 | C15: 70680 | D15: 76180 | E15: 28220 | F15: 47960 | G15: 47960
A16: lasuca2 hopper to warehouse #1 | B16: 2022-01-08 | C16: 70681 | D16: 76360 | E16: 28060 | F16: 48300 | G16: 48300
A17: lasuca2 hopper to warehouse #1 | B17: 2022-01-08 | C17: 70682 | D17: 77120 | E17: 28300 | F17: 48820 | G17: 48820
A18: lasuca2 hopper to warehouse #1 | B18: 2022-01-08 | C18: 70683 | D18: 75780 | E18: 28260 | F18: 47520 | G18: 47520
A19: lasuca2 hopper to warehouse #1 | B19: 2022-01-08 | C19: 70684 | D19: 76860 | E19: 28280 | F19: 48580 | G19: 48580
A20: lasuca2 hopper to warehouse #1 | B20: 2022-01-08 | C20: 70685 | D20: 76940 | E20: 28240 | F20: 48700 | G20: 48700
A21: lasuca2 hopper to warehouse #1 | B21: 2022-01-08 | C21: 70686 | D21: 75960 | E21: 28240 | F21: 47720 | G21: 47720
A22: lasuca2 hopper to warehouse #1 | B22: 2022-01-08 | C22: 70687 | D22: 77240 | E22: 28320 | F22: 48920 | G22: 48920
A23: lasuca2 hopper to warehouse #1 | B23: 2022-01-08 | C23: 70689 | D23: 75460 | E23: 28200 | F23: 47260 | G23: 47260
A24: lasuca2 hopper to warehouse #1 | B24: 2022-01-08 | C24: 70690 | D24: 76320 | E24: 28320 | F24: 48000 | G24: 48000
A25: lasuca2 hopper to warehouse #1 | B25: 2022-01-08 | C25: 70691 | D25: 73460 | E25: 28260 | F25: 45200 | G25: 45200
A26: lasuca2 hopper to warehouse #1 | B26: 2022-01-08 | C26: 70692 | D26: 76740 | E26: 28100 | F26: 48640 | G26: 48640
A27: lasuca2 hopper to warehouse #1 | B27: 2022-01-08 | C27: 70694 | D27: 75660 | E27: 28200 | F27: 47460 | G27: 47460
A28: lasuca2 hopper to warehouse #1 | B28: 2022-01-08 | C28: 70695 | D28: 75140 | E28: 28320 | F28: 46820 | G28: 46820
A29: lasuca2 hopper to warehouse #1 | B29: 2022-01-08 | C29: 70696 | D29: 75600 | E29: 28260 | F29: 47340 | G29: 47340
A30: lasuca2 hopper to warehouse #1 | B30: 2022-01-08 | C30: 70697 | D30: 76340 | E30: 28320 | F30: 48020 | G30: 48020
A31: lasuca2 hopper to warehouse #1 | B31: 2022-01-08 | C31: 70698 | D31: 75120 | E31: 28460 | F31: 46660 | G31: 46660
A32: lasuca2 hopper to warehouse #1 | B32: 2022-01-08 | C32: 70699 | D32: 77620 | E32: 28420 | F32: 49200 | G32: 49200
A33: lasuca2 hopper to warehouse #1 | B33: 2022-01-08 | C33: 70700 | D33: 78340 | E33: 28360 | F33: 49980 | G33: 49980
A34: lasuca2 hopper to warehouse #1 | B34: 2022-01-08 | C34: 70701 | D34: 76380 | E34: 28440 | F34: 47940 | G34: 47940
A35: lasuca2 hopper to warehouse #1 | B35: 2022-01-08 | C35: 70702 | D35: 75680 | E35: 28260 | F35: 47420 | G35: 47420
A36: lasuca2 hopper to warehouse #1 | B36: 2022-01-08 | C36: 70703 | D36: 78780 | E36: 28260 | F36: 50520 | G36: 50520
A37: lasuca2 hopper to warehouse #1 | B37: 2022-01-08 | C37: 70704 | D37: 73820 | E37: 28260 | F37: 45560 | G37: 45560
A38: lasuca2 hopper to warehouse #1 | B38: 2022-01-08 | C38: 70705 | D38: 78560 | E38: 28380 | F38: 50180 | G38: 50180
A39: lasuca2 hopper to warehouse #1 | B39: 2022-01-08 | C39: 70706 | D39: 76700 | E39: 28460 | F39: 48240 | G39: 48240
A40: lasuca2 hopper to warehouse #1 | B40: 2022-01-08 | C40: 70707 | D40: 74860 | E40: 28400 | F40: 46460 | G40: 46460
A41: lasuca2 hopper to warehouse #1 | B41: 2022-01-08 | C41: 70708 | D41: 74660 | E41: 28280 | F41: 46380 | G41: 46380
A42: lasuca2 hopper to warehouse #1 | B42: 2022-01-08 | C42: 70709 | D42: 74920 | E42: 28300 | F42: 46620 | G42: 46620
A43: lasuca2 hopper to warehouse #1 | B43: 2022-01-08 | C43: 70710 | D43: 72140 | E43: 28280 | F43: 43860 | G43: 43860
A44: lasuca2 hopper to warehouse #1 | B44: 2022-01-08 | C44: 70711 | D44: 76120 | E44: 28460 | F44: 47660 | G44: 47660
A45: lasuca2 hopper to warehouse #1 | B45: 2022-01-08 | C45: 70712 | D45: 75640 | E45: 28140 | F45: 47500 | G45: 47500
A46: lasuca2 hopper to warehouse #1 | B46: 2022-01-08 | C46: 70713 | D46: 73020 | E46: 27960 | F46: 45060 | G46: 45060
A47: lasuca2 hopper to warehouse #1 | B47: 2022-01-08 | C47: 70714 | D47: 72340 | E47: 28060 | F47: 44280 | G47: 44280
A48: lasuca2 hopper to warehouse #1 | B48: 2022-01-08 | C48: 70715 | D48: 74440 | E48: 28080 | F48: 46360 | G48: 46360
A49: lasuca2 hopper to warehouse #1 | B49: 2022-01-08 | C49: 70716 | D49: 76700 | E49: 29180 | F49: 47520 | G49: 47520
A50: lasuca2 hopper to warehouse #1 | B50: 2022-01-08 | C50: 70717 | D50: 75620 | E50: 27940 | F50: 47680 | G50: 47680
A51: lasuca2 hopper to warehouse #1 | B51: 2022-01-08 | C51: 70718 | D51: 76600 | E51: 28120 | F51: 48480 | G51: 48480
A52: lasuca2 hopper to warehouse #1 | B52: 2022-01-08 | C52: 70719 | D52: 73360 | E52: 28700 | F52: 44660 | G52: 44660
A53: lasuca2 hopper to warehouse #1 | B53: 2022-01-08 | C53: 70720 | D53: 64560 | E53: 28240 | F53: 36320 | G53: 36320
A54: lasuca2 hopper to warehouse #1 | B54: 2022-01-08 | C54: 70721 | D54: 75240 | E54: 28140 | F54: 47100 | G54: 47100
A55: lasuca2 hopper to warehouse #1 | B55: 2022-01-08 | C55: 70722 | D55: 74820 | E55: 28200 | F55: 46620 | G55: 46620
A56: lasuca2 hopper to warehouse #1 | B56: 2022-01-08 | C56: 70723 | D56: 75880 | E56: 28200 | F56: 47680 | G56: 47680
A57: lasuca2 hopper to warehouse #1 | B57: 2022-01-08 | C57: 70724 | D57: 75740 | E57: 28060 | F57: 47680 | G57: 47680
A58: lasuca2 hopper to warehouse #1 | B58: 2022-01-08 | C58: 70725 | D58: 77440 | E58: 28100 | F58: 49340 | G58: 49340
A59: lasuca2 hopper to warehouse #1 | B59: 2022-01-08 | C59: 70726 | D59: 77020 | E59: 28120 | F59: 48900 | G59: 48900
A60: lasuca2 hopper to warehouse #1 | B60: 2022-01-08 | C60: 70727 | D60: 75800 | E60: 28040 | F60: 47760 | G60: 47760
A61: lasuca2 hopper to warehouse #1 | B61: 2022-01-08 | C61: 70728 | D61: 74880 | E61: 28040 | F61: 46840 | G61: 46840
A62: lasuca2 hopper to warehouse #1 | B62: 2022-01-08 | C62: 70729 | D62: 75560 | E62: 28000 | F62: 47560 | G62: 47560
A63: lasuca2 hopper to warehouse #1 | B63: 2022-01-08 | C63: 70730 | D63: 75240 | E63: 27800 | F63: 47440 | G63: 47440
A64: lasuca2 hopper to warehouse #1 | B64: 2022-01-08 | C64: 70731 | D64: 75160 | E64: 27960 | F64: 47200 | G64: 47200
A65: lasuca2 hopper to warehouse #1 | B65: 2022-01-08 | C65: 70732 | D65: 75200 | E65: 27940 | F65: 47260 | G65: 47260
A66: lasuca2 hopper to warehouse #1 | B66: 2022-01-08 | C66: 70733 | D66: 73820 | E66: 28040 | F66: 45780 | G66: 45780
A67: lasuca2 hopper to warehouse #1 | B67: 2022-01-08 | C67: 70734 | D67: 77720 | E67: 28060 | F67: 49660 | G67: 49660
A68: lasuca2 hopper to warehouse #1 | B68: 2022-01-08 | C68: 70735 | D68: 74900 | E68: 28160 | F68: 46740 | G68: 46740
A69: lasuca2 hopper to warehouse #1 | B69: 2022-01-08 | C69: 70736 | D69: 78080 | E69: 28180 | F69: 49900 | G69: 49900
A70: lasuca2 hopper to warehouse #1 | B70: 2022-01-08 | C70: 70737 | D70: 73520 | E70: 28040 | F70: 45480 | G70: 45480
A71: lasuca2 hopper to warehouse #1 | B71: 2022-01-08 | C71: 70738 | D71: 76260 | E71: 28080 | F71: 48180 | G71: 48180
A72: lasuca2 hopper to warehouse #1 | B72: 2022-01-08 | C72: 70739 | D72: 77360 | E72: 28000 | F72: 49360 | G72: 49360
A73: lasuca2 hopper to warehouse #1 | B73: 2022-01-08 | C73: 70740 | D73: 75860 | E73: 28060 | F73: 47800 | G73: 47800
A74: lasuca2 hopper to warehouse #1 | B74: 2022-01-08 | C74: 70741 | D74: 74920 | E74: 27800 | F74: 47120 | G74: 47120
A75: lasuca2 hopper to warehouse #1 | B75: 2022-01-08 | C75: 70742 | D75: 75640 | E75: 27880 | F75: 47760 | G75: 47760
A76: lasuca2 hopper to warehouse #1 | B76: 2022-01-08 | C76: 70743 | D76: 76320 | E76: 27900 | F76: 48420 | G76: 48420
A77: lasuca2 hopper to warehouse #1 | B77: 2022-01-08 | C77: 70744 | D77: 80220 | E77: 27920 | F77: 52300 | G77: 52300
A78: lasuca2 hopper to warehouse #1 | B78: 2022-01-08 | C78: 70745 | D78: 77080 | E78: 28060 | F78: 49020 | G78: 49020
A79: lasuca2 hopper to warehouse #1 | B79: 2022-01-08 | C79: 70746 | D79: 78200 | E79: 28120 | F79: 50080 | G79: 50080
A80: lasuca2 hopper to warehouse #1 | B80: 2022-01-08 | C80: 70747 | D80: 77040 | E80: 28600 | F80: 48440 | G80: 48440
A81: lasuca2 hopper to warehouse #1 | B81: 2022-01-08 | C81: 70748 | D81: 74620 | E81: 28100 | F81: 46520 | G81: 46520
A82: lasuca2 hopper to warehouse #1 | B82: 2022-01-08 | C82: 70749 | D82: 76040 | E82: 28200 | F82: 47840 | G82: 47840
A83: lasuca2 hopper to warehouse #1 | B83: 2022-01-08 | C83: 70750 | D83: 75300 | E83: 27940 | F83: 47360 | G83: 47360
A84: lasuca2 hopper to warehouse #1 | B84: 2022-01-08 | C84: 70751 | D84: 74160 | E84: 28000 | F84: 46160 | G84: 46160
A85: lasuca2 hopper to warehouse #1 | B85: 2022-01-08 | C85: 70752 | D85: 78460 | E85: 27900 | F85: 50560 | G85: 50560
A86: lasuca2 hopper to warehouse #1 | B86: 2022-01-08 | C86: 70753 | D86: 76920 | E86: 28020 | F86: 48900 | G86: 48900
A87: lasuca2 hopper to warehouse #1 | B87: 2022-01-08 | C87: 70754 | D87: 76740 | E87: 28060 | F87: 48680 | G87: 48680
A88: lasuca2 hopper to warehouse #1 | B88: 2022-01-08 | C88: 70755 | D88: 76540 | E88: 28040 | F88: 48500 | G88: 48500
A89: lasuca2 hopper to warehouse #1 | B89: 2022-01-08 | C89: 70756 | D89: 74920 | E89: 28000 | F89: 46920 | G89: 46920
A90: lasuca2 hopper to warehouse #1 | B90: 2022-01-08 | C90: 70757 | D90: 80000 | E90: 30200 | F90: 49800 | G90: 49800
A91: lasuca2 hopper to warehouse #1 | B91: 2022-01-08 | C91: 70758 | D91: 77000 | E91: 28020 | F91: 48980 | G91: 48980
A92: lasuca2 hopper to warehouse #1 | B92: 2022-01-08 | C92: 70759 | D92: 74020 | E92: 27880 | F92: 46140 | G92: 46140
A93: lasuca2 hopper to warehouse #1 | B93: 2022-01-08 | C93: 70760 | D93: 74660 | E93: 27860 | F93: 46800 | G93: 46800
B96: Grand Total | G96: 4439160

Sheet Sheet11
A1: WH2 TO CSC DALLAS,TX | B1: 2022-01-08 | C1: 444-Maluva-Load#220037 | D1: 11099 | E1: 82160 | F1: 28960 | G1: =E1-F1 -> 53200
A2: WH2 TO CSC DALLAS,TX | B2: 2022-01-08 | C2: 275-Maluva-Load#220035 | D2: 11100 | E2: 84540 | F2: 28980 | G2: 55560
A3: WH2 TO CSC DALLAS,TX | B3: 2022-01-08 | C3: 227-Maluva-Load#220036 | D3: 11102 | E3: 84300 | F3: 29640 | G3: 54660
A4: WH2 TO SUPREME | B4: 2022-01-08 | C4: 07-BigDawg Trucking | D4: 11101 | E4: 92820 | F4: 35940 | G4: 56880
A5: WH2 TO SUPREME | B5: 2022-01-08 | C5: 1905-Pacer Trucking | D5: 11103 | E5: 93340 | F5: 32440 | G5: 60900
A6: WH2 TO SUPREME | B6: 2022-01-08 | C6: 1906-Pacer Trucking | D6: 11105 | E6: 95560 | F6: 41040 | G6: 54520
A7: WH2 TO SUPREME | B7: 2022-01-08 | C7: 1908-Pacer Trucking | D7: 11104 | E7: 91840 | F7: 30760 | G7: 61080
A8: WH2 TO SUPREME | B8: 2022-01-08 | C8: 1904-Pacer Trucking | D8: 11107 | E8: 97780 | F8: 32980 | G8: 64800
A9: WH2 TO SUPREME | B9: 2022-01-08 | C9: 1909-Pacer Trucking | D9: 11108 | E9: 94740 | F9: 32800 | G9: 61940
A10: WH2 TO SUPREME | B10: 2022-01-08 | C10: 01-Earl Pania | D10: 11106 | E10: 90640 | F10: 33680 | G10: 56960
